Workbook

Sheet Základní údaje
A1: Centrum kolejí Jarov + xPORT VŠE
A2: OBDOBÍ:
A3: 2020-12-07 | B3: 2024-12-06
A4: Identifikace subjektu podávajícího nabídku:
A5: Název subjektu:
A6: IČ:
A7: Sídlo:
A8: Zapsaná v:
D9: Předpoklad roční inflace
D10: 1. rok | E10: 2. rok | F10: 3. rok | G10: 4. rok
A11: CENA pracovní dny [Kč/hodinu/člověka]: | B11: 0 | C11: =IF(B11<>0,B12/B11,0) -> 0 | D11: 0 | E11: 0.03 | F11: 0.03 | G11: 0.03
A12: CENA víkendy [Kč/hodinu/člověka]: | B12: 0 | C12: =IF(B11<>0,(5*B11+2*B12)/7/B11,0) -> 0 | D12: 1 | E12: =1+E11 -> 1.03 | F12: =1+F11 -> 1.03 | G12: 1.03
D13: 1 | E13: =+D13*E12 -> 1.03 | F13: =+E13*F12 -> 1.0609 | G13: 1.092727 | H13: =SUM(D13:G13)/4 -> 1.04590675
A15: CENA CELKEM ZA ZAKÁZKU: | B15: ='Rozpis úklidu'!C86 -> 0

Sheet Rozpis úklidu
A1: ='Základní údaje'!A1 -> Centrum kolejí Jarov + xPORT VŠE | C1: ='Základní údaje'!A2 -> OBDOBÍ: | D1: ='Základní údaje'!A3 -> 2020-12-07 | E1: ='Základní údaje'!B3 -> 2024-12-06
A2: Cena za 1 úklidovou hodinu: | C2: ='Základní údaje'!B11 -> 0 | D2: Kč/hod.
A3: Úklidová jednotka | B3: xPORT | C3: plocha [m²] | D3: kusy [-] | E3: počet úklidových jednotek | F3: CELKEM [m²] [ks] | G3: uklízí se | H3: počet úklidů | I3: sezonní týden od | J3: sezonní týden do | K3: uklízí se v pracovní dny | L3: uklízí se o víkendech | M3: Popis činnosti | N3: Zadavatelem předpokládaný čas na úklidovou jednotku [min] | O3: Uchazečem navrhovaný čas na úklidovou jednotku [min.] | P3: celkový čas úklidu všech úklidových jednotek [hod.] | Q3: Cena za úklidovou jednotku [Kč] | R3: cena celkem za všechny úklidové jednotky (prac. dny) [Kč] | S3: Cena celkem za období úklidu [Kč] | T3: Poznámka
A4: ZÁVĚTŘÍ - 1. NP | C4: 9.1 | E4: 1 | F4: =C4*E4+D4*E4 -> 9.1 | G4: denně | H4: 1 | K4: 1 | L4: 0 | M4: Zamést a odstranit odpadky a nečistoty. | N4: 5 | P4: =IF(O4=0,N4*E4/60,O4*E4/60) -> 0.08333333333 | Q4: =ROUND(IF(O4=0,N4/60*$C$2,O4/60*$C$2),0) -> 0 | R4: =Q4*E4 -> 0 | S4: =IF(G4="denně",R4*H4*$C$82,IF(G4="týdně",R4*H4*$C$83,IF(G4="měsíčně",R4*H4*$C$84,IF(G4="čtvrtletně",R4*H4*4*$C$85,IF(G4="ročně",R4*H4*$C$85,H4*R4*$C$85)))))*'Základní údaje'!$H$13*IF(L4=1,'Základní údaje'!$C$12,1) -> 0
A5: ZÁDVEŘÍ - 1. NP | C5: 11.2 | E5: 1 | F5: 11.2 | G5: denně | H5: 1 | K5: 1 | L5: 0 | M5: Typová činnost č.: 1 | N5: 5 | P5: 0.08333333333 | Q5: 0 | R5: 0 | S5: =IF(G5="denně",R5*H5*$C$82,IF(G5="týdně",R5*H5*$C$83,IF(G5="měsíčně",R5*H5*$C$84,IF(G5="čtvrtletně",R5*H5*4*$C$85,IF(G5="ročně",R5*H5*$C$85,H5*R5*$C$85)))))*'Základní údaje'!$H$13*IF(L5=1,'Základní údaje'!$C$12,1) -> 0
A6: VSTUPNÍ HALA - 1. NP | C6: 106.56 | E6: 1 | F6: 106.56 | G6: denně | H6: 1 | K6: 1 | L6: 0 | M6: Typová činnost č.: 1 | N6: =25*C6/60 -> 44.4 | P6: 0.74 | Q6: 0 | R6: 0 | S6: =IF(G6="denně",R6*H6*$C$82,IF(G6="týdně",R6*H6*$C$83,IF(G6="měsíčně",R6*H6*$C$84,IF(G6="čtvrtletně",R6*H6*4*$C$85,IF(G6="ročně",R6*H6*$C$85,H6*R6*$C$85)))))*'Základní údaje'!$H$13*IF(L6=1,'Základní údaje'!$C$12,1) -> 0
A7: WC - 1. NP | C7: 38.67 | E7: 1 | F7: 38.67 | G7: denně | H7: 1 | K7: 1 | L7: 0 | M7: Typová činnost č.: 14 | N7: 8 | P7: 0.1333333333 | Q7: 0 | R7: 0 | S7: =IF(G7="denně",R7*H7*$C$82,IF(G7="týdně",R7*H7*$C$83,IF(G7="měsíčně",R7*H7*$C$84,IF(G7="čtvrtletně",R7*H7*4*$C$85,IF(G7="ročně",R7*H7*$C$85,H7*R7*$C$85)))))*'Základní údaje'!$H$13*IF(L7=1,'Základní údaje'!$C$12,1) -> 0
A8: SCHODIŠTĚ - XPORT - 1. NP | C8: 24.54 | E8: 1 | F8: 24.54 | G8: denně | H8: 1 | K8: 1 | L8: 0 | M8: Typová činnost č.: 1 | N8: =15*C8/60 -> 6.135 | P8: 0.10225 | Q8: 0 | R8: 0 | S8: =IF(G8="denně",R8*H8*$C$82,IF(G8="týdně",R8*H8*$C$83,IF(G8="měsíčně",R8*H8*$C$84,IF(G8="čtvrtletně",R8*H8*4*$C$85,IF(G8="ročně",R8*H8*$C$85,H8*R8*$C$85)))))*'Základní údaje'!$H$13*IF(L8=1,'Základní údaje'!$C$12,1) -> 0
A9: SCHODIŠTĚ VENKOVNÍ - 1. NP | C9: 17.49 | E9: 1 | F9: 17.49 | G9: denně | H9: 1 | K9: 1 | L9: 0 | M9: Typová činnost č.: 1 | N9: =15*C9/60 -> 4.3725 | P9: 0.072875 | Q9: 0 | R9: 0 | S9: =IF(G9="denně",R9*H9*$C$82,IF(G9="týdně",R9*H9*$C$83,IF(G9="měsíčně",R9*H9*$C$84,IF(G9="čtvrtletně",R9*H9*4*$C$85,IF(G9="ročně",R9*H9*$C$85,H9*R9*$C$85)))))*'Základní údaje'!$H$13*IF(L9=1,'Základní údaje'!$C$12,1) -> 0
A10: KANCELÁŘE - 1. NP | C10: =327.02/14 -> 23.35857143 | E10: 14 | F10: 327.02 | G10: denně | H10: 1 | K10: 1 | L10: 0 | M10: Typová činnost č.: 3 Podlahová krytina: koberec | N10: =15*C10/60 -> 5.839642857 | P10: 1.362583333 | Q10: 0 | R10: 0 | S10: =IF(G10="denně",R10*H10*$C$82,IF(G10="týdně",R10*H10*$C$83,IF(G10="měsíčně",R10*H10*$C$84,IF(G10="čtvrtletně",R10*H10*4*$C$85,IF(G10="ročně",R10*H10*$C$85,H10*R10*$C$85)))))*'Základní údaje'!$H$13*IF(L10=1,'Základní údaje'!$C$12,1) -> 0
A11: Schodiště ze SÚZ do xPORT | B11: 1 | C11: 24.54 | E11: 1 | F11: 24.54 | G11: denně | H11: 1 | K11: 1 | L11: 0 | M11: Typová činnost č.: 1 Podlahová krytina: dlažba | N11: =15*C11/60 -> 6.135 | P11: 0.10225 | Q11: 0 | R11: 0 | S11: =IF(G11="denně",R11*H11*$C$82,IF(G11="týdně",R11*H11*$C$83,IF(G11="měsíčně",R11*H11*$C$84,IF(G11="čtvrtletně",R11*H11*4*$C$85,IF(G11="ročně",R11*H11*$C$85,H11*R11*$C$85)))))*'Základní údaje'!$H$13*IF(L11=1,'Základní údaje'!$C$12,1) -> 0
A12: vstupní hala xPORT + recepce | B12: 1 | C12: 44.01 | E12: 1 | F12: 44.01 | G12: denně | H12: 1 | K12: 1 | L12: 0 | M12: Typová činnost č.: 1 Podlahová krytina: lino | N12: =25*C12/60 -> 18.3375 | P12: 0.305625 | Q12: 0 | R12: 0 | S12: =IF(G12="denně",R12*H12*$C$82,IF(G12="týdně",R12*H12*$C$83,IF(G12="měsíčně",R12*H12*$C$84,IF(G12="čtvrtletně",R12*H12*4*$C$85,IF(G12="ročně",R12*H12*$C$85,H12*R12*$C$85)))))*'Základní údaje'!$H$13*IF(L12=1,'Základní údaje'!$C$12,1) -> 0
A13: Kuchyňka - 2. NP xPORT | B13: 1 | C13: 71.55 | E13: 1 | F13: 71.55 | G13: denně | H13: 1 | K13: 1 | L13: 0 | M13: Typová činnost č.: 5 Podlahová krytina: lino | N13: =30*C13/60 -> 35.775 | P13: 0.59625 | Q13: 0 | R13: 0 | S13: =IF(G13="denně",R13*H13*$C$82,IF(G13="týdně",R13*H13*$C$83,IF(G13="měsíčně",R13*H13*$C$84,IF(G13="čtvrtletně",R13*H13*4*$C$85,IF(G13="ročně",R13*H13*$C$85,H13*R13*$C$85)))))*'Základní údaje'!$H$13*IF(L13=1,'Základní údaje'!$C$12,1) -> 0
A14: WC - 2. NP xPORT | B14: 1 | C14: 34.25 | E14: 1 | F14: 34.25 | G14: denně | H14: 1 | K14: 1 | L14: 0 | M14: Typová činnost č.: 14 Podlahová krytina: dlažba | N14: =450/60 -> 7.5 | P14: 0.125 | Q14: 0 | R14: 0 | S14: =IF(G14="denně",R14*H14*$C$82,IF(G14="týdně",R14*H14*$C$83,IF(G14="měsíčně",R14*H14*$C$84,IF(G14="čtvrtletně",R14*H14*4*$C$85,IF(G14="ročně",R14*H14*$C$85,H14*R14*$C$85)))))*'Základní údaje'!$H$13*IF(L14=1,'Základní údaje'!$C$12,1) -> 0
A15: Director - 2. NP xPORT | B15: 1 | C15: 14.51 | E15: 1 | F15: 14.51 | G15: denně | H15: 1 | K15: 1 | L15: 0 | M15: Typová činnost č.: 3 Podlahová krytina: koberec | N15: =15*C15/60 -> 3.6275 | P15: 0.06045833333 | Q15: 0 | R15: 0 | S15: =IF(G15="denně",R15*H15*$C$82,IF(G15="týdně",R15*H15*$C$83,IF(G15="měsíčně",R15*H15*$C$84,IF(G15="čtvrtletně",R15*H15*4*$C$85,IF(G15="ročně",R15*H15*$C$85,H15*R15*$C$85)))))*'Základní údaje'!$H$13*IF(L15=1,'Základní údaje'!$C$12,1) -> 0
A16: Chill Out - 2. NP xPORT | B16: 1 | C16: 57.06 | E16: 1 | F16: 57.06 | G16: denně | H16: 1 | K16: 1 | L16: 0 | M16: Typová činnost č.: 3 Podlahová krytina: lino+koberec | N16: 14.265 | P16: 0.23775 | Q16: 0 | R16: 0 | S16: =IF(G16="denně",R16*H16*$C$82,IF(G16="týdně",R16*H16*$C$83,IF(G16="měsíčně",R16*H16*$C$84,IF(G16="čtvrtletně",R16*H16*4*$C$85,IF(G16="ročně",R16*H16*$C$85,H16*R16*$C$85)))))*'Základní údaje'!$H$13*IF(L16=1,'Základní údaje'!$C$12,1) -> 0
A17: Kuchyňka - 3. NP xPORT | B17: 1 | C17: 5.7 | E17: 1 | F17: 5.7 | G17: denně | H17: 1 | K17: 1 | L17: 0 | M17: Typová činnost č.: 5 Podlahová krytina: lino | N17: =30*C17/60 -> 2.85 | P17: 0.0475 | Q17: 0 | R17: 0 | S17: =IF(G17="denně",R17*H17*$C$82,IF(G17="týdně",R17*H17*$C$83,IF(G17="měsíčně",R17*H17*$C$84,IF(G17="čtvrtletně",R17*H17*4*$C$85,IF(G17="ročně",R17*H17*$C$85,H17*R17*$C$85)))))*'Základní údaje'!$H$13*IF(L17=1,'Základní údaje'!$C$12,1) -> 0
A18: Kanceláře - 3. NP xPORT | B18: 1 | C18: =292.67/7 -> 41.81 | E18: 7 | F18: 292.67 | G18: denně | H18: 1 | K18: 1 | L18: 0 | M18: Typová činnost č.: 3 Podlahová krytina: koberec | N18: =15*C18/60 -> 10.4525 | P18: 1.219458333 | Q18: 0 | R18: 0 | S18: =IF(G18="denně",R18*H18*$C$82,IF(G18="týdně",R18*H18*$C$83,IF(G18="měsíčně",R18*H18*$C$84,IF(G18="čtvrtletně",R18*H18*4*$C$85,IF(G18="ročně",R18*H18*$C$85,H18*R18*$C$85)))))*'Základní údaje'!$H$13*IF(L18=1,'Základní údaje'!$C$12,1) -> 0
A19: WC - 3. NP xPORT | B19: 1 | C19: 26.75 | E19: 1 | F19: 26.75 | G19: denně | H19: 1 | K19: 1 | L19: 0 | M19: Typová činnost č.: 14 Podlahová krytina: dlažba | N19: 7.5 | P19: 0.125 | Q19: 0 | R19: 0 | S19: =IF(G19="denně",R19*H19*$C$82,IF(G19="týdně",R19*H19*$C$83,IF(G19="měsíčně",R19*H19*$C$84,IF(G19="čtvrtletně",R19*H19*4*$C$85,IF(G19="ročně",R19*H19*$C$85,H19*R19*$C$85)))))*'Základní údaje'!$H$13*IF(L19=1,'Základní údaje'!$C$12,1) -> 0
A20: Bay Bridge - 2. NP xPORT | B20: 1 | C20: 45.81 | E20: 1 | F20: 45.81 | G20: denně | H20: 1 | K20: 1 | L20: 0 | M20: Typová činnost č.: 3 Podlahová krytina: koberec | N20: =20*C20/60 -> 15.27 | P20: =IF(O20=0,N20*E20/60,O20*E20/60) -> 0.2545 | Q20: =ROUND(IF(O20=0,N20/60*$C$2,O20/60*$C$2),0) -> 0 | R20: =Q20*E20 -> 0 | S20: =IF(G20="denně",R20*H20*$C$82,IF(G20="týdně",R20*H20*$C$83,IF(G20="měsíčně",R20*H20*$C$84,IF(G20="čtvrtletně",R20*H20*4*$C$85,IF(G20="ročně",R20*H20*$C$85,H20*R20*$C$85)))))*'Základní údaje'!$H$13*IF(L20=1,'Základní údaje'!$C$12,1) -> 0
A21: San Francisco - 2. NP xPORT | B21: 1 | C21: 62.92 | E21: 1 | F21: 62.92 | G21: denně | H21: 1 | K21: 1 | L21: 0 | M21: Typová činnost č.: 3 Podlahová krytina: koberec | N21: 20.97333333 | P21: 0.3495555556 | Q21: 0 | R21: 0 | S21: =IF(G21="denně",R21*H21*$C$82,IF(G21="týdně",R21*H21*$C$83,IF(G21="měsíčně",R21*H21*$C$84,IF(G21="čtvrtletně",R21*H21*4*$C$85,IF(G21="ročně",R21*H21*$C$85,H21*R21*$C$85)))))*'Základní údaje'!$H$13*IF(L21=1,'Základní údaje'!$C$12,1) -> 0
A22: Recepce - 2. NP xPORT | B22: 1 | C22: 121.19 | E22: 1 | F22: 121.19 | G22: denně | H22: 1 | K22: 1 | L22: 0 | M22: Typová činnost č.: 1 Podlahová krytina: lino | N22: 40.39666667 | P22: 0.6732777778 | Q22: 0 | R22: 0 | S22: =IF(G22="denně",R22*H22*$C$82,IF(G22="týdně",R22*H22*$C$83,IF(G22="měsíčně",R22*H22*$C$84,IF(G22="čtvrtletně",R22*H22*4*$C$85,IF(G22="ročně",R22*H22*$C$85,H22*R22*$C$85)))))*'Základní údaje'!$H$13*IF(L22=1,'Základní údaje'!$C$12,1) -> 0
A23: Open Space - 2. NP xPORT | B23: 1 | C23: 313.64 | E23: 1 | F23: 313.64 | G23: denně | H23: 1 | K23: 1 | L23: 0 | M23: Typová činnost č.: 3 Podlahová krytina: koberec | N23: 104.5466667 | P23: 1.742444444 | Q23: 0 | R23: 0 | S23: =IF(G23="denně",R23*H23*$C$82,IF(G23="týdně",R23*H23*$C$83,IF(G23="měsíčně",R23*H23*$C$84,IF(G23="čtvrtletně",R23*H23*4*$C$85,IF(G23="ročně",R23*H23*$C$85,H23*R23*$C$85)))))*'Základní údaje'!$H$13*IF(L23=1,'Základní údaje'!$C$12,1) -> 0
A24: Lobby - 2. NP xPORT | B24: 1 | C24: 26.46 | E24: 1 | F24: 26.46 | G24: denně | H24: 1 | K24: 1 | L24: 0 | M24: Typová činnost č.: 3 Podlahová krytina: lino | N24: 8.82 | P24: 0.147 | Q24: 0 | R24: 0 | S24: =IF(G24="denně",R24*H24*$C$82,IF(G24="týdně",R24*H24*$C$83,IF(G24="měsíčně",R24*H24*$C$84,IF(G24="čtvrtletně",R24*H24*4*$C$85,IF(G24="ročně",R24*H24*$C$85,H24*R24*$C$85)))))*'Základní údaje'!$H$13*IF(L24=1,'Základní údaje'!$C$12,1) -> 0
A25: Chodba - 2. NP xPORT | B25: 1 | C25: 32.96 | E25: 1 | F25: 32.96 | G25: denně | H25: 1 | K25: 1 | L25: 0 | M25: Typová činnost č.: 1 Podlahová krytina: koberec | N25: =10*C25/60 -> 5.493333333 | P25: 0.09155555556 | Q25: 0 | R25: 0 | S25: =IF(G25="denně",R25*H25*$C$82,IF(G25="týdně",R25*H25*$C$83,IF(G25="měsíčně",R25*H25*$C$84,IF(G25="čtvrtletně",R25*H25*4*$C$85,IF(G25="ročně",R25*H25*$C$85,H25*R25*$C$85)))))*'Základní údaje'!$H$13*IF(L25=1,'Základní údaje'!$C$12,1) -> 0
A26: World Trade Centre - 2. NP xPORT | B26: 1 | C26: 43.63 | E26: 1 | F26: 43.63 | G26: denně | H26: 1 | K26: 1 | L26: 0 | M26: Typová činnost č.: 3 Podlahová krytina: koberec | N26: =20*C26/60 -> 14.54333333 | P26: 0.2423888889 | Q26: 0 | R26: 0 | S26: =IF(G26="denně",R26*H26*$C$82,IF(G26="týdně",R26*H26*$C$83,IF(G26="měsíčně",R26*H26*$C$84,IF(G26="čtvrtletně",R26*H26*4*$C$85,IF(G26="ročně",R26*H26*$C$85,H26*R26*$C$85)))))*'Základní údaje'!$H$13*IF(L26=1,'Základní údaje'!$C$12,1) -> 0
A27: Malé zas. místnosti - 2. NP xPORT | B27: 1 | C27: 49.98 | E27: 1 | F27: 49.98 | G27: denně | H27: 1 | K27: 1 | L27: 0 | M27: Typová činnost č.: 3 Podlahová krytina: koberec | N27: 16.66 | P27: 0.2776666667 | Q27: 0 | R27: 0 | S27: =IF(G27="denně",R27*H27*$C$82,IF(G27="týdně",R27*H27*$C$83,IF(G27="měsíčně",R27*H27*$C$84,IF(G27="čtvrtletně",R27*H27*4*$C$85,IF(G27="ročně",R27*H27*$C$85,H27*R27*$C$85)))))*'Základní údaje'!$H$13*IF(L27=1,'Základní údaje'!$C$12,1) -> 0
A28: Area 51 - 2. NP xPORT | B28: 1 | C28: 25.29 | E28: 1 | F28: 25.29 | G28: denně | H28: 1 | K28: 1 | L28: 0 | M28: Typová činnost č.: 3 Podlahová krytina: koberec | N28: 8.43 | P28: 0.1405 | Q28: 0 | R28: 0 | S28: =IF(G28="denně",R28*H28*$C$82,IF(G28="týdně",R28*H28*$C$83,IF(G28="měsíčně",R28*H28*$C$84,IF(G28="čtvrtletně",R28*H28*4*$C$85,IF(G28="ročně",R28*H28*$C$85,H28*R28*$C$85)))))*'Základní údaje'!$H$13*IF(L28=1,'Základní údaje'!$C$12,1) -> 0
A29: Call rooms - 2. NP xPORT | B29: 1 | C29: 12.68 | E29: 1 | F29: 12.68 | G29: denně | H29: 1 | K29: 1 | L29: 0 | M29: Typová činnost č.: 3 Podlahová krytina: koberec | N29: 4.226666667 | P29: 0.07044444444 | Q29: 0 | R29: 0 | S29: =IF(G29="denně",R29*H29*$C$82,IF(G29="týdně",R29*H29*$C$83,IF(G29="měsíčně",R29*H29*$C$84,IF(G29="čtvrtletně",R29*H29*4*$C$85,IF(G29="ročně",R29*H29*$C$85,H29*R29*$C$85)))))*'Základní údaje'!$H$13*IF(L29=1,'Základní údaje'!$C$12,1) -> 0
A30: Manhattan - 2. NP xPORT | B30: 1 | C30: 27.33 | E30: 1 | F30: =C30*E30+D30*E30 -> 27.33 | G30: denně | H30: 1 | K30: 1 | L30: 0 | M30: Typová činnost č.: 3 Podlahová krytina: koberec | N30: 9.11 | P30: =IF(O30=0,N30*E30/60,O30*E30/60) -> 0.1518333333 | Q30: =ROUND(IF(O30=0,N30/60*$C$2,O30/60*$C$2),0) -> 0 | R30: =Q30*E30 -> 0 | S30: =IF(G30="denně",R30*H30*$C$82,IF(G30="týdně",R30*H30*$C$83,IF(G30="měsíčně",R30*H30*$C$84,IF(G30="čtvrtletně",R30*H30*4*$C$85,IF(G30="ročně",R30*H30*$C$85,H30*R30*$C$85)))))*'Základní údaje'!$H$13*IF(L30=1,'Základní údaje'!$C$12,1) -> 0
A31: Chodba - 3. NP xPORT | B31: 1 | C31: 11.65 | E31: 1 | F31: 11.65 | G31: denně | H31: 1 | K31: 1 | L31: 0 | M31: Typová činnost č.: 1 Podlahová krytina: koberec | N31: =10*C31/60 -> 1.941666667 | P31: 0.03236111111 | Q31: 0 | R31: 0 | S31: =IF(G31="denně",R31*H31*$C$82,IF(G31="týdně",R31*H31*$C$83,IF(G31="měsíčně",R31*H31*$C$84,IF(G31="čtvrtletně",R31*H31*4*$C$85,IF(G31="ročně",R31*H31*$C$85,H31*R31*$C$85)))))*'Základní údaje'!$H$13*IF(L31=1,'Základní údaje'!$C$12,1) -> 0
A32: Open Space - 3. NP xPORT | B32: 1 | C32: 119.93 | E32: 1 | F32: 119.93 | G32: denně | H32: 1 | K32: 1 | L32: 0 | M32: Typová činnost č.: 3 Podlahová krytina: koberec | N32: 39.97666667 | P32: 0.6662777778 | Q32: 0 | R32: =Q32*E32 -> 0 | S32: =IF(G32="denně",R32*H32*$C$82,IF(G32="týdně",R32*H32*$C$83,IF(G32="měsíčně",R32*H32*$C$84,IF(G32="čtvrtletně",R32*H32*4*$C$85,IF(G32="ročně",R32*H32*$C$85,H32*R32*$C$85)))))*'Základní údaje'!$H$13*IF(L32=1,'Základní údaje'!$C$12,1) -> 0
A33: Schodiště - 3. NP xPORT | B33: 1 | C33: 10.83 | E33: 1 | F33: 10.83 | G33: denně | H33: 1 | K33: 1 | L33: 0 | M33: Typová činnost č.: 1 Podlahová krytina: koberec | N33: =15*C33/60 -> 2.7075 | P33: 0.045125 | Q33: 0 | R33: 0 | S33: =IF(G33="denně",R33*H33*$C$82,IF(G33="týdně",R33*H33*$C$83,IF(G33="měsíčně",R33*H33*$C$84,IF(G33="čtvrtletně",R33*H33*4*$C$85,IF(G33="ročně",R33*H33*$C$85,H33*R33*$C$85)))))*'Základní údaje'!$H$13*IF(L33=1,'Základní údaje'!$C$12,1) -> 0
A34: Kontrola a doplnění papírových ručníků a toaletního papíru na toalety | D34: 1 | E34: 5 | F34: =C34*E34+D34*E34 -> 5 | G34: denně | H34: 1 | K34: 1 | L34: 0 | M34: kontrola a doplnění toaletního papíru a papírových ručníků do zásobníků na toaletách (materiál nakupuje zadavatel) | N34: 3 | P34: =IF(O34=0,N34*E34/60,O34*E34/60) -> 0.25 | Q34: =ROUND(IF(O34=0,N34/60*$C$2,O34/60*$C$2),0) -> 0 | R34: =Q34*E34 -> 0 | S34: =IF(G34="denně",R34*H34*$C$82,IF(G34="týdně",R34*H34*$C$83,IF(G34="měsíčně",R34*H34*$C$84,IF(G34="čtvrtletně",R34*H34*4*$C$85,IF(G34="ročně",R34*H34*$C$85,H34*R34*$C$85)))))*'Základní údaje'!$H$13*IF(L34=1,'Základní údaje'!$C$12,1) -> 0
A35: VSTUPNÍ HALA - 1.PP | C35: 19.28 | E35: 1 | F35: =C35*E35+D35*E35 -> 19.28 | G35: týdně | H35: 2 | K35: 1 | L35: 0 | M35: Typová činnost č.: 1 Podlahová krytina: dlažba | N35: =25*C35/60 -> 8.033333333 | P35: =IF(O35=0,N35*E35/60,O35*E35/60) -> 0.1338888889 | Q35: =ROUND(IF(O35=0,N35/60*$C$2,O35/60*$C$2),0) -> 0 | R35: =Q35*E35 -> 0 | S35: =IF(G35="denně",R35*H35*$C$82,IF(G35="týdně",R35*H35*$C$83,IF(G35="měsíčně",R35*H35*$C$84,IF(G35="čtvrtletně",R35*H35*4*$C$85,IF(G35="ročně",R35*H35*$C$85,H35*R35*$C$85)))))*'Základní údaje'!$H$13*IF(L35=1,'Základní údaje'!$C$12,1) -> 0
A36: SCHODIŠTĚ- K TĚLOCV. - 1.PP | C36: 10.8 | E36: 1 | F36: 10.8 | G36: týdně | H36: 2 | K36: 1 | L36: 0 | M36: Typová činnost č.: 1 | N36: =15*C36/60 -> 2.7 | P36: 0.045 | Q36: 0 | R36: 0 | S36: =IF(G36="denně",R36*H36*$C$82,IF(G36="týdně",R36*H36*$C$83,IF(G36="měsíčně",R36*H36*$C$84,IF(G36="čtvrtletně",R36*H36*4*$C$85,IF(G36="ročně",R36*H36*$C$85,H36*R36*$C$85)))))*'Základní údaje'!$H$13*IF(L36=1,'Základní údaje'!$C$12,1) -> 0
A37: CHODBA - 1.PP | C37: 12.83 | E37: 1 | F37: 12.83 | G37: týdně | H37: 2 | K37: 1 | L37: 0 | M37: Typová činnost č.: 1 Podlahová krytina: dlažba | N37: =10*C37/60 -> 2.138333333 | P37: 0.03563888889 | Q37: 0 | R37: 0 | S37: =IF(G37="denně",R37*H37*$C$82,IF(G37="týdně",R37*H37*$C$83,IF(G37="měsíčně",R37*H37*$C$84,IF(G37="čtvrtletně",R37*H37*4*$C$85,IF(G37="ročně",R37*H37*$C$85,H37*R37*$C$85)))))*'Základní údaje'!$H$13*IF(L37=1,'Základní údaje'!$C$12,1) -> 0
A38: HALA 1 - 1. NP | C38: 93.81 | E38: 1 | F38: 93.81 | G38: týdně | H38: 2 | K38: 1 | L38: 0 | M38: Typová činnost č.: 1 Podlahová krytina: koberce | N38: =25*C38/60 -> 39.0875 | P38: 0.6514583333 | Q38: 0 | R38: 0 | S38: =IF(G38="denně",R38*H38*$C$82,IF(G38="týdně",R38*H38*$C$83,IF(G38="měsíčně",R38*H38*$C$84,IF(G38="čtvrtletně",R38*H38*4*$C$85,IF(G38="ročně",R38*H38*$C$85,H38*R38*$C$85)))))*'Základní údaje'!$H$13*IF(L38=1,'Základní údaje'!$C$12,1) -> 0
A39: HALA 2 - 1. NP | C39: 39.61 | E39: 1 | F39: 39.61 | G39: týdně | H39: 2 | K39: 1 | L39: 0 | M39: Typová činnost č.: 1 Podlahová krytina: dlažba | N39: =25*C39/60 -> 16.50416667 | P39: 0.2750694444 | Q39: 0 | R39: 0 | S39: =IF(G39="denně",R39*H39*$C$82,IF(G39="týdně",R39*H39*$C$83,IF(G39="měsíčně",R39*H39*$C$84,IF(G39="čtvrtletně",R39*H39*4*$C$85,IF(G39="ročně",R39*H39*$C$85,H39*R39*$C$85)))))*'Základní údaje'!$H$13*IF(L39=1,'Základní údaje'!$C$12,1) -> 0
A40: VÝTAH - 1. NP | C40: 3.58 | E40: 1 | F40: 3.58 | G40: týdně | H40: 2 | K40: 1 | L40: 0 | M40: Typová činnost č.: 11 | N40: 5 | P40: 0.08333333333 | Q40: 0 | R40: 0 | S40: =IF(G40="denně",R40*H40*$C$82,IF(G40="týdně",R40*H40*$C$83,IF(G40="měsíčně",R40*H40*$C$84,IF(G40="čtvrtletně",R40*H40*4*$C$85,IF(G40="ročně",R40*H40*$C$85,H40*R40*$C$85)))))*'Základní údaje'!$H$13*IF(L40=1,'Základní údaje'!$C$12,1) -> 0
A41: SCHODIŠTĚ- K TĚLOCV. - 1. NP | C41: 9.92 | E41: 1 | F41: 9.92 | G41: týdně | H41: 2 | K41: 1 | L41: 0 | M41: Typová činnost č.: 1 | N41: =15*C41/60 -> 2.48 | P41: 0.04133333333 | Q41: 0 | R41: 0 | S41: =IF(G41="denně",R41*H41*$C$82,IF(G41="týdně",R41*H41*$C$83,IF(G41="měsíčně",R41*H41*$C$84,IF(G41="čtvrtletně",R41*H41*4*$C$85,IF(G41="ročně",R41*H41*$C$85,H41*R41*$C$85)))))*'Základní údaje'!$H$13*IF(L41=1,'Základní údaje'!$C$12,1) -> 0
A42: ZASEDACÍ MÍSTNOST - 1. NP | C42: 36.12 | E42: 1 | F42: 36.12 | G42: týdně | H42: 2 | K42: 1 | L42: 0 | M42: Typová činnost č.: 3 | N42: =20*C42/60 -> 12.04 | P42: 0.2006666667 | Q42: 0 | R42: 0 | S42: =IF(G42="denně",R42*H42*$C$82,IF(G42="týdně",R42*H42*$C$83,IF(G42="měsíčně",R42*H42*$C$84,IF(G42="čtvrtletně",R42*H42*4*$C$85,IF(G42="ročně",R42*H42*$C$85,H42*R42*$C$85)))))*'Základní údaje'!$H$13*IF(L42=1,'Základní údaje'!$C$12,1) -> 0
A43: HALA - OSOBNÍ VÝTAH - 1. NP | C43: 9.9 | E43: 1 | F43: 9.9 | G43: týdně | H43: 2 | K43: 1 | L43: 0 | M43: Typová činnost č.: 1 a 11 | N43: =25*C43/60 -> 4.125 | P43: 0.06875 | Q43: 0 | R43: 0 | S43: =IF(G43="denně",R43*H43*$C$82,IF(G43="týdně",R43*H43*$C$83,IF(G43="měsíčně",R43*H43*$C$84,IF(G43="čtvrtletně",R43*H43*4*$C$85,IF(G43="ročně",R43*H43*$C$85,H43*R43*$C$85)))))*'Základní údaje'!$H$13*IF(L43=1,'Základní údaje'!$C$12,1) -> 0
A44: SCHODIŠŤOVÝ PROSTOR - 3.NP | C44: 35.58 | E44: 1 | F44: 35.58 | G44: týdně | H44: 1 | K44: 1 | L44: 0 | M44: Typová činnost č.: 1 Podlahová krytina: dlažba | N44: =15*C44/60 -> 8.895 | P44: 0.14825 | Q44: 0 | R44: 0 | S44: =IF(G44="denně",R44*H44*$C$82,IF(G44="týdně",R44*H44*$C$83,IF(G44="měsíčně",R44*H44*$C$84,IF(G44="čtvrtletně",R44*H44*4*$C$85,IF(G44="ročně",R44*H44*$C$85,H44*R44*$C$85)))))*'Základní údaje'!$H$13*IF(L44=1,'Základní údaje'!$C$12,1) -> 0
A45: SPOLEČNÁ CHODBA - 3.NP | C45: 17.78 | E45: 1 | F45: 17.78 | G45: týdně | H45: 1 | K45: 1 | L45: 0 | M45: Typová činnost č.: 1 Podlahová krytina: dlažba | N45: =10*C45/60 -> 2.963333333 | P45: 0.04938888889 | Q45: 0 | R45: 0 | S45: =IF(G45="denně",R45*H45*$C$82,IF(G45="týdně",R45*H45*$C$83,IF(G45="měsíčně",R45*H45*$C$84,IF(G45="čtvrtletně",R45*H45*4*$C$85,IF(G45="ročně",R45*H45*$C$85,H45*R45*$C$85)))))*'Základní údaje'!$H$13*IF(L45=1,'Základní údaje'!$C$12,1) -> 0
A46: Mezipatro - 3. NP xPORT | B46: 1 | C46: 41.25 | E46: 1 | F46: 41.25 | G46: týdně | H46: 1 | K46: 1 | L46: 0 | M46: Typová činnost č.: 1 Podlahová krytina: koberec | N46: =10*C46/60 -> 6.875 | P46: 0.1145833333 | Q46: 0 | R46: 0 | S46: =IF(G46="denně",R46*H46*$C$82,IF(G46="týdně",R46*H46*$C$83,IF(G46="měsíčně",R46*H46*$C$84,IF(G46="čtvrtletně",R46*H46*4*$C$85,IF(G46="ročně",R46*H46*$C$85,H46*R46*$C$85)))))*'Základní údaje'!$H$13*IF(L46=1,'Základní údaje'!$C$12,1) -> 0
A47: SPRCHY - 1. NP (muži, ženy) | C47: 6.3 | E47: 2 | F47: 12.6 | G47: měsíčně | H47: 1 | K47: 1 | L47: 0 | M47: Typová činnost č.: 15 Podlahová krytina: dlažba | N47: =100*C47/60 -> 10.5 | P47: 0.35 | Q47: 0 | R47: 0 | S47: =IF(G47="denně",R47*H47*$C$82,IF(G47="týdně",R47*H47*$C$83,IF(G47="měsíčně",R47*H47*$C$84,IF(G47="čtvrtletně",R47*H47*4*$C$85,IF(G47="ročně",R47*H47*$C$85,H47*R47*$C$85)))))*'Základní údaje'!$H$13*IF(L47=1,'Základní údaje'!$C$12,1) -> 0
A48: Schod. ze SÚZ do xPORT - 2. NP xPORT | B48: 1 | C48: 17.83 | E48: 1 | F48: 17.83 | G48: měsíčně | H48: 1 | K48: 1 | L48: 0 | M48: Typová činnost č.: 1 Podlahová krytina: dlažba | N48: =15*C48/60 -> 4.4575 | P48: 0.07429166667 | Q48: 0 | R48: 0 | S48: =IF(G48="denně",R48*H48*$C$82,IF(G48="týdně",R48*H48*$C$83,IF(G48="měsíčně",R48*H48*$C$84,IF(G48="čtvrtletně",R48*H48*4*$C$85,IF(G48="ročně",R48*H48*$C$85,H48*R48*$C$85)))))*'Základní údaje'!$H$13*IF(L48=1,'Základní údaje'!$C$12,1) -> 0
A49: Schodiště u výtahu - 2. NP xPORT | B49: 1 | C49: 11.13 | E49: 1 | F49: 11.13 | G49: měsíčně | H49: 1 | K49: 1 | L49: 0 | M49: Typová činnost č.: 1 Podlahová krytina: dlažba | N49: =15*C49/60 -> 2.7825 | P49: 0.046375 | Q49: 0 | R49: 0 | S49: =IF(G49="denně",R49*H49*$C$82,IF(G49="týdně",R49*H49*$C$83,IF(G49="měsíčně",R49*H49*$C$84,IF(G49="čtvrtletně",R49*H49*4*$C$85,IF(G49="ročně",R49*H49*$C$85,H49*R49*$C$85)))))*'Základní údaje'!$H$13*IF(L49=1,'Základní údaje'!$C$12,1) -> 0
A50: Terasa - 3. NP xPORT | B50: 1 | C50: 60.79 | E50: 1 | F50: 60.79 | G50: měsíčně | H50: 1 | K50: 1 | L50: 0 | M50: Typová činnost č.: 2 Podlahová krytina: plast | N50: =25*C50/60 -> 25.32916667 | P50: 0.4221527778 | Q50: 0 | R50: 0 | S50: =IF(G50="denně",R50*H50*$C$82,IF(G50="týdně",R50*H50*$C$83,IF(G50="měsíčně",R50*H50*$C$84,IF(G50="čtvrtletně",R50*H50*4*$C$85,IF(G50="ročně",R50*H50*$C$85,H50*R50*$C$85)))))*'Základní údaje'!$H$13*IF(L50=1,'Základní údaje'!$C$12,1) -> 0
A51: ŠATNA - 1.PP | C51: 21.24 | E51: 1 | F51: =C51*E51+D51*E51 -> 21.24 | G51: sezonně | H51: =(J51-I51+1)*5 -> 85 | I51: 36 | J51: 52 | K51: 1 | L51: 0 | M51: Typová činnost č.: 3 Podlahová krytina: dlažba | N51: =15*C51/60 -> 5.31 | P51: =IF(O51=0,N51*E51/60,O51*E51/60) -> 0.0885 | Q51: =ROUND(IF(O51=0,N51/60*$C$2,O51/60*$C$2),0) -> 0 | R51: =Q51*E51 -> 0 | S51: =IF(G51="denně",R51*H51*$C$82,IF(G51="týdně",R51*H51*$C$83,IF(G51="měsíčně",R51*H51*$C$84,IF(G51="čtvrtletně",R51*H51*4*$C$85,IF(G51="ročně",R51*H51*$C$85,H51*R51*$C$85)))))*'Základní údaje'!$H$13*IF(L51=1,'Základní údaje'!$C$12,1) -> 0
A52: WC - 1.PP | C52: 17.36 | E52: 1 | F52: 17.36 | G52: sezonně | H52: =(J52-I52+1)*5 -> 85 | I52: 36 | J52: 52 | K52: 1 | L52: 0 | M52: Typová činnost č.: 14 Podlahová krytina: dlažba | N52: 7.5 | P52: 0.125 | Q52: 0 | R52: 0 | S52: =IF(G52="denně",R52*H52*$C$82,IF(G52="týdně",R52*H52*$C$83,IF(G52="měsíčně",R52*H52*$C$84,IF(G52="čtvrtletně",R52*H52*4*$C$85,IF(G52="ročně",R52*H52*$C$85,H52*R52*$C$85)))))*'Základní údaje'!$H$13*IF(L52=1,'Základní údaje'!$C$12,1) -> 0
A53: ŠATNA PROFESOŘI - 1.PP | C53: 3.4 | E53: 1 | F53: 3.4 | G53: sezonně | H53: 85 | I53: 36 | J53: 52 | K53: 1 | L53: 0 | M53: Typová činnost č.: 3 Podlahová krytina: dlažba | N53: =20*C53/60 -> 1.133333333 | P53: 0.01888888889 | Q53: 0 | R53: 0 | S53: =IF(G53="denně",R53*H53*$C$82,IF(G53="týdně",R53*H53*$C$83,IF(G53="měsíčně",R53*H53*$C$84,IF(G53="čtvrtletně",R53*H53*4*$C$85,IF(G53="ročně",R53*H53*$C$85,H53*R53*$C$85)))))*'Základní údaje'!$H$13*IF(L53=1,'Základní údaje'!$C$12,1) -> 0
A54: SOC- PROFESOŘI - 1.PP | C54: 5.28 | E54: 1 | F54: 5.28 | G54: sezonně | H54: 85 | I54: 36 | J54: 52 | K54: 1 | L54: 0 | M54: Typová činnost č.: 14 + 15 Podlahová krytina: dlažba | N54: =100*C54/60 -> 8.8 | P54: 0.1466666667 | Q54: 0 | R54: 0 | S54: =IF(G54="denně",R54*H54*$C$82,IF(G54="týdně",R54*H54*$C$83,IF(G54="měsíčně",R54*H54*$C$84,IF(G54="čtvrtletně",R54*H54*4*$C$85,IF(G54="ročně",R54*H54*$C$85,H54*R54*$C$85)))))*'Základní údaje'!$H$13*IF(L54=1,'Základní údaje'!$C$12,1) -> 0
A55: ŠATNA - 1.PP | C55: 21.24 | E55: 1 | F55: =C55*E55+D55*E55 -> 21.24 | G55: sezonně | H55: 135 | I55: 1 | J55: 27 | K55: 1 | L55: 0 | M55: Typová činnost č.: 3 Podlahová krytina: dlažba | N55: =20*C55/60 -> 7.08 | P55: =IF(O55=0,N55*E55/60,O55*E55/60) -> 0.118 | Q55: =ROUND(IF(O55=0,N55/60*$C$2,O55/60*$C$2),0) -> 0 | R55: =Q55*E55 -> 0 | S55: =IF(G55="denně",R55*H55*$C$82,IF(G55="týdně",R55*H55*$C$83,IF(G55="měsíčně",R55*H55*$C$84,IF(G55="čtvrtletně",R55*H55*4*$C$85,IF(G55="ročně",R55*H55*$C$85,H55*R55*$C$85)))))*'Základní údaje'!$H$13*IF(L55=1,'Základní údaje'!$C$12,1) -> 0
A56: WC - 1.PP | C56: 17.36 | E56: 1 | F56: =C56*E56+D56*E56 -> 17.36 | G56: sezonně | H56: 135 | I56: 1 | J56: 27 | K56: 1 | L56: 0 | M56: Typová činnost č.: 14 Podlahová krytina: dlažba | N56: 7.5 | P56: =IF(O56=0,N56*E56/60,O56*E56/60) -> 0.125 | Q56: =ROUND(IF(O56=0,N56/60*$C$2,O56/60*$C$2),0) -> 0 | R56: =Q56*E56 -> 0 | S56: =IF(G56="denně",R56*H56*$C$82,IF(G56="týdně",R56*H56*$C$83,IF(G56="měsíčně",R56*H56*$C$84,IF(G56="čtvrtletně",R56*H56*4*$C$85,IF(G56="ročně",R56*H56*$C$85,H56*R56*$C$85)))))*'Základní údaje'!$H$13*IF(L56=1,'Základní údaje'!$C$12,1) -> 0
A57: ŠATNA PROFESOŘI - 1.PP | C57: 3.4 | E57: 1 | F57: =C57*E57+D57*E57 -> 3.4 | G57: sezonně | H57: 135 | I57: 1 | J57: 27 | K57: 1 | L57: 0 | M57: Typová činnost č.: 3 Podlahová krytina: dlažba | N57: =20*C57/60 -> 1.133333333 | P57: =IF(O57=0,N57*E57/60,O57*E57/60) -> 0.01888888889 | Q57: =ROUND(IF(O57=0,N57/60*$C$2,O57/60*$C$2),0) -> 0 | R57: =Q57*E57 -> 0 | S57: =IF(G57="denně",R57*H57*$C$82,IF(G57="týdně",R57*H57*$C$83,IF(G57="měsíčně",R57*H57*$C$84,IF(G57="čtvrtletně",R57*H57*4*$C$85,IF(G57="ročně",R57*H57*$C$85,H57*R57*$C$85)))))*'Základní údaje'!$H$13*IF(L57=1,'Základní údaje'!$C$12,1) -> 0
A58: SOC- PROFESOŘI - 1.PP | C58: 5.28 | E58: 1 | F58: =C58*E58+D58*E58 -> 5.28 | G58: sezonně | H58: 135 | I58: 1 | J58: 27 | K58: 1 | L58: 0 | M58: Typová činnost č.: 14 + 15 Podlahová krytina: dlažba | N58: =100*C58/60 -> 8.8 | P58: =IF(O58=0,N58*E58/60,O58*E58/60) -> 0.1466666667 | Q58: =ROUND(IF(O58=0,N58/60*$C$2,O58/60*$C$2),0) -> 0 | R58: =Q58*E58 -> 0 | S58: =IF(G58="denně",R58*H58*$C$82,IF(G58="týdně",R58*H58*$C$83,IF(G58="měsíčně",R58*H58*$C$84,IF(G58="čtvrtletně",R58*H58*4*$C$85,IF(G58="ročně",R58*H58*$C$85,H58*R58*$C$85)))))*'Základní údaje'!$H$13*IF(L58=1,'Základní údaje'!$C$12,1) -> 0
A59: CVIČEBNÍ SÁL A - 1.PP | C59: 53.46 | E59: 1 | F59: =C59*E59+D59*E59 -> 53.46 | G59: sezonně | H59: =(J59-I59+1) -> 17 | I59: 36 | J59: 52 | K59: 1 | L59: 0 | M59: Typová činnost č.: 3 | N59: =20*C59/60 -> 17.82 | P59: =IF(O59=0,N59*E59/60,O59*E59/60) -> 0.297 | Q59: =ROUND(IF(O59=0,N59/60*$C$2,O59/60*$C$2),0) -> 0 | R59: =Q59*E59 -> 0 | S59: =IF(G59="denně",R59*H59*$C$82,IF(G59="týdně",R59*H59*$C$83,IF(G59="měsíčně",R59*H59*$C$84,IF(G59="čtvrtletně",R59*H59*4*$C$85,IF(G59="ročně",R59*H59*$C$85,H59*R59*$C$85)))))*'Základní údaje'!$H$13*IF(L59=1,'Základní údaje'!$C$12,1) -> 0
A60: CVIČEBNÍ SÁL B - 1.PP | C60: 145 | E60: 1 | F60: 145 | G60: sezonně | H60: =(J60-I60+1) -> 17 | I60: 36 | J60: 52 | K60: 1 | L60: 0 | M60: Typová činnost č.: 3 | N60: 48.33333333 | P60: 0.8055555556 | Q60: 0 | R60: 0 | S60: =IF(G60="denně",R60*H60*$C$82,IF(G60="týdně",R60*H60*$C$83,IF(G60="měsíčně",R60*H60*$C$84,IF(G60="čtvrtletně",R60*H60*4*$C$85,IF(G60="ročně",R60*H60*$C$85,H60*R60*$C$85)))))*'Základní údaje'!$H$13*IF(L60=1,'Základní údaje'!$C$12,1) -> 0
A61: CHODBA - U TĚLOCVIČNY - 1.PP | C61: 32.82 | E61: 1 | F61: 32.82 | G61: sezonně | H61: =(J61-I61+1)*2 -> 34 | I61: 36 | J61: 52 | K61: 1 | L61: 0 | M61: Typová činnost č.: 1 Podlahová krytina: dlažba | N61: =10*C61/60 -> 5.47 | P61: 0.09116666667 | Q61: 0 | R61: 0 | S61: =IF(G61="denně",R61*H61*$C$82,IF(G61="týdně",R61*H61*$C$83,IF(G61="měsíčně",R61*H61*$C$84,IF(G61="čtvrtletně",R61*H61*4*$C$85,IF(G61="ročně",R61*H61*$C$85,H61*R61*$C$85)))))*'Základní údaje'!$H$13*IF(L61=1,'Základní údaje'!$C$12,1) -> 0
A62: CVIČEBNÍ SÁL A - 1.PP | C62: 53.46 | E62: 1 | F62: =C62*E62+D62*E62 -> 53.46 | G62: sezonně | H62: =(J62-I62+1) -> 27 | I62: 1 | J62: 27 | K62: 1 | L62: 0 | M62: Typová činnost č.: 3 | N62: 17.82 | P62: =IF(O62=0,N62*E62/60,O62*E62/60) -> 0.297 | Q62: =ROUND(IF(O62=0,N62/60*$C$2,O62/60*$C$2),0) -> 0 | R62: =Q62*E62 -> 0 | S62: =IF(G62="denně",R62*H62*$C$82,IF(G62="týdně",R62*H62*$C$83,IF(G62="měsíčně",R62*H62*$C$84,IF(G62="čtvrtletně",R62*H62*4*$C$85,IF(G62="ročně",R62*H62*$C$85,H62*R62*$C$85)))))*'Základní údaje'!$H$13*IF(L62=1,'Základní údaje'!$C$12,1) -> 0
A63: CVIČEBNÍ SÁL B - 1.PP | C63: 145 | E63: 1 | F63: =C63*E63+D63*E63 -> 145 | G63: sezonně | H63: =(J63-I63+1) -> 27 | I63: 1 | J63: 27 | K63: 1 | L63: 0 | M63: Typová činnost č.: 3 | N63: 48.33333333 | P63: =IF(O63=0,N63*E63/60,O63*E63/60) -> 0.8055555556 | Q63: =ROUND(IF(O63=0,N63/60*$C$2,O63/60*$C$2),0) -> 0 | R63: =Q63*E63 -> 0 | S63: =IF(G63="denně",R63*H63*$C$82,IF(G63="týdně",R63*H63*$C$83,IF(G63="měsíčně",R63*H63*$C$84,IF(G63="čtvrtletně",R63*H63*4*$C$85,IF(G63="ročně",R63*H63*$C$85,H63*R63*$C$85)))))*'Základní údaje'!$H$13*IF(L63=1,'Základní údaje'!$C$12,1) -> 0
A64: CHODBA - U TĚLOCVIČNY - 1.PP | C64: 32.82 | E64: 1 | F64: =C64*E64+D64*E64 -> 32.82 | G64: sezonně | H64: =(J64-I64+1)*2 -> 54 | I64: 1 | J64: 27 | K64: 1 | L64: 0 | M64: Typová činnost č.: 1 | N64: =10*C64/60 -> 5.47 | P64: =IF(O64=0,N64*E64/60,O64*E64/60) -> 0.09116666667 | Q64: =ROUND(IF(O64=0,N64/60*$C$2,O64/60*$C$2),0) -> 0 | R64: =Q64*E64 -> 0 | S64: =IF(G64="denně",R64*H64*$C$82,IF(G64="týdně",R64*H64*$C$83,IF(G64="měsíčně",R64*H64*$C$84,IF(G64="čtvrtletně",R64*H64*4*$C$85,IF(G64="ročně",R64*H64*$C$85,H64*R64*$C$85)))))*'Základní údaje'!$H$13*IF(L64=1,'Základní údaje'!$C$12,1) -> 0
A65: ŠATNY - sport. areál | C65: 51.02 | E65: 1 | F65: =C65*E65+D65*E65 -> 51.02 | G65: sezonně | H65: =(J65-I65+1)*3 -> 51 | I65: 36 | J65: 52 | K65: 1 | L65: 0 | M65: Typová činnost č.: 3 Podlahová krytina: dlažba | N65: =20*C65/60 -> 17.00666667 | P65: =IF(O65=0,N65*E65/60,O65*E65/60) -> 0.2834444444 | Q65: =ROUND(IF(O65=0,N65/60*$C$2,O65/60*$C$2),0) -> 0 | R65: =Q65*E65 -> 0 | S65: =IF(G65="denně",R65*H65*$C$82,IF(G65="týdně",R65*H65*$C$83,IF(G65="měsíčně",R65*H65*$C$84,IF(G65="čtvrtletně",R65*H65*4*$C$85,IF(G65="ročně",R65*H65*$C$85,H65*R65*$C$85)))))*'Základní údaje'!$H$13*IF(L65=1,'Základní údaje'!$C$12,1) -> 0
A66: CHODBA - sport. areál | C66: 41.94 | E66: 1 | F66: 41.94 | G66: sezonně | H66: =(J66-I66+1)*3 -> 51 | I66: 36 | J66: 52 | K66: 1 | L66: 0 | M66: Typová činnost č.: 1 Podlahová krytina: dlažba | N66: =10*C66/60 -> 6.99 | P66: 0.1165 | Q66: 0 | R66: =Q66*E66 -> 0 | S66: =IF(G66="denně",R66*H66*$C$82,IF(G66="týdně",R66*H66*$C$83,IF(G66="měsíčně",R66*H66*$C$84,IF(G66="čtvrtletně",R66*H66*4*$C$85,IF(G66="ročně",R66*H66*$C$85,H66*R66*$C$85)))))*'Základní údaje'!$H$13*IF(L66=1,'Základní údaje'!$C$12,1) -> 0
A67: KOUPELNY A WC - sport. areál | C67: 52.85 | E67: 1 | F67: 52.85 | G67: sezonně | H67: 51 | I67: 36 | J67: 52 | K67: 1 | L67: 0 | M67: Typová činnost č.: 14 + 15 Podlahová krytina: dlažba | N67: =100*C67/60 -> 88.08333333 | P67: 1.468055556 | Q67: 0 | R67: 0 | S67: =IF(G67="denně",R67*H67*$C$82,IF(G67="týdně",R67*H67*$C$83,IF(G67="měsíčně",R67*H67*$C$84,IF(G67="čtvrtletně",R67*H67*4*$C$85,IF(G67="ročně",R67*H67*$C$85,H67*R67*$C$85)))))*'Základní údaje'!$H$13*IF(L67=1,'Základní údaje'!$C$12,1) -> 0
A68: ŠATNY - sport. areál | C68: 51.02 | E68: 1 | F68: =C68*E68+D68*E68 -> 51.02 | G68: sezonně | H68: 81 | I68: 1 | J68: 27 | K68: 1 | L68: 0 | M68: Typová činnost č.: 3 | N68: =20*C68/60 -> 17.00666667 | P68: =IF(O68=0,N68*E68/60,O68*E68/60) -> 0.2834444444 | Q68: =ROUND(IF(O68=0,N68/60*$C$2,O68/60*$C$2),0) -> 0 | R68: =Q68*E68 -> 0 | S68: =IF(G68="denně",R68*H68*$C$82,IF(G68="týdně",R68*H68*$C$83,IF(G68="měsíčně",R68*H68*$C$84,IF(G68="čtvrtletně",R68*H68*4*$C$85,IF(G68="ročně",R68*H68*$C$85,H68*R68*$C$85)))))*'Základní údaje'!$H$13*IF(L68=1,'Základní údaje'!$C$12,1) -> 0
A69: CHODBA - sport. areál | C69: 41.94 | E69: 1 | F69: =C69*E69+D69*E69 -> 41.94 | G69: sezonně | H69: 81 | I69: 1 | J69: 27 | K69: 1 | L69: 0 | M69: Typová činnost č.: 1 | N69: =10*C69/60 -> 6.99 | P69: =IF(O69=0,N69*E69/60,O69*E69/60) -> 0.1165 | Q69: =ROUND(IF(O69=0,N69/60*$C$2,O69/60*$C$2),0) -> 0 | R69: =Q69*E69 -> 0 | S69: =IF(G69="denně",R69*H69*$C$82,IF(G69="týdně",R69*H69*$C$83,IF(G69="měsíčně",R69*H69*$C$84,IF(G69="čtvrtletně",R69*H69*4*$C$85,IF(G69="ročně",R69*H69*$C$85,H69*R69*$C$85)))))*'Základní údaje'!$H$13*IF(L69=1,'Základní údaje'!$C$12,1) -> 0
A70: KOUPELNY A WC - sport. areál | C70: 52.85 | E70: 1 | F70: =C70*E70+D70*E70 -> 52.85 | G70: sezonně | H70: 81 | I70: 1 | J70: 27 | K70: 1 | L70: 0 | M70: Typová činnost č.: 14 + 15 Podlahová krytina: dlažba | N70: =100*C70/60 -> 88.08333333 | P70: =IF(O70=0,N70*E70/60,O70*E70/60) -> 1.468055556 | Q70: =ROUND(IF(O70=0,N70/60*$C$2,O70/60*$C$2),0) -> 0 | R70: =Q70*E70 -> 0 | S70: =IF(G70="denně",R70*H70*$C$82,IF(G70="týdně",R70*H70*$C$83,IF(G70="měsíčně",R70*H70*$C$84,IF(G70="čtvrtletně",R70*H70*4*$C$85,IF(G70="ročně",R70*H70*$C$85,H70*R70*$C$85)))))*'Základní údaje'!$H$13*IF(L70=1,'Základní údaje'!$C$12,1) -> 0
A71: NÁŘAĎOVNA - 1.PP | C71: 6.7 | E71: 1 | F71: =C71*E71+D71*E71 -> 6.7 | G71: sezonně | H71: 4 | I71: 36 | J71: 52 | K71: 1 | L71: 0 | M71: Typová činnost č.: 3 | N71: =20*C71/60 -> 2.233333333 | P71: =IF(O71=0,N71*E71/60,O71*E71/60) -> 0.03722222222 | Q71: =ROUND(IF(O71=0,N71/60*$C$2,O71/60*$C$2),0) -> 0 | R71: =Q71*E71 -> 0 | S71: =IF(G71="denně",R71*H71*$C$82,IF(G71="týdně",R71*H71*$C$83,IF(G71="měsíčně",R71*H71*$C$84,IF(G71="čtvrtletně",R71*H71*4*$C$85,IF(G71="ročně",R71*H71*$C$85,H71*R71*$C$85)))))*'Základní údaje'!$H$13*IF(L71=1,'Základní údaje'!$C$12,1) -> 0
A72: NÁŘAĎOVNA - 1.PP | C72: 6.7 | E72: 1 | F72: =C72*E72+D72*E72 -> 6.7 | G72: sezonně | H72: 6 | I72: 1 | J72: 27 | K72: 1 | L72: 0 | M72: Typová činnost č.: 3 | N72: 2.233333333 | P72: =IF(O72=0,N72*E72/60,O72*E72/60) -> 0.03722222222 | Q72: =ROUND(IF(O72=0,N72/60*$C$2,O72/60*$C$2),0) -> 0 | R72: =Q72*E72 -> 0 | S72: =IF(G72="denně",R72*H72*$C$82,IF(G72="týdně",R72*H72*$C$83,IF(G72="měsíčně",R72*H72*$C$84,IF(G72="čtvrtletně",R72*H72*4*$C$85,IF(G72="ročně",R72*H72*$C$85,H72*R72*$C$85)))))*'Základní údaje'!$H$13*IF(L72=1,'Základní údaje'!$C$12,1) -> 0
F73: 0 | K73: 1 | L73: 0 | P73: 0 | Q73: 0 | R73: 0 | S73: =IF(G73="denně",R73*H73*$C$82,IF(G73="týdně",R73*H73*$C$83,IF(G73="měsíčně",R73*H73*$C$84,IF(G73="čtvrtletně",R73*H73*4*$C$85,IF(G73="ročně",R73*H73*$C$85,H73*R73*$C$85)))))*'Základní údaje'!$H$13*IF(L73=1,'Základní údaje'!$C$12,1) -> 0
F74: 0 | K74: 1 | L74: 0 | P74: 0 | Q74: 0 | R74: 0 | S74: =IF(G74="denně",R74*H74*$C$82,IF(G74="týdně",R74*H74*$C$83,IF(G74="měsíčně",R74*H74*$C$84,IF(G74="čtvrtletně",R74*H74*4*$C$85,IF(G74="ročně",R74*H74*$C$85,H74*R74*$C$85)))))*'Základní údaje'!$H$13*IF(L74=1,'Základní údaje'!$C$12,1) -> 0
F75: 0 | K75: 1 | L75: 0 | P75: 0 | Q75: 0 | R75: 0 | S75: =IF(G75="denně",R75*H75*$C$82,IF(G75="týdně",R75*H75*$C$83,IF(G75="měsíčně",R75*H75*$C$84,IF(G75="čtvrtletně",R75*H75*4*$C$85,IF(G75="ročně",R75*H75*$C$85,H75*R75*$C$85)))))*'Základní údaje'!$H$13*IF(L75=1,'Základní údaje'!$C$12,1) -> 0
F76: 0 | K76: 1 | L76: 0 | P76: 0 | Q76: 0 | R76: 0 | S76: =IF(G76="denně",R76*H76*$C$82,IF(G76="týdně",R76*H76*$C$83,IF(G76="měsíčně",R76*H76*$C$84,IF(G76="čtvrtletně",R76*H76*4*$C$85,IF(G76="ročně",R76*H76*$C$85,H76*R76*$C$85)))))*'Základní údaje'!$H$13*IF(L76=1,'Základní údaje'!$C$12,1) -> 0
F77: =C77*E77+D77*E77 -> 0 | P77: =IF(O77=0,N77*E77/60,O77*E77/60) -> 0 | Q77: =ROUND(IF(O77=0,N77/60*$C$2,O77/60*$C$2),0) -> 0 | R77: =Q77*E77 -> 0 | S77: =IF(G77="denně",R77*H77*$C$82,IF(G77="týdně",R77*H77*$C$83,IF(G77="měsíčně",R77*H77*$C$84,IF(G77="čtvrtletně",R77*H77*4*$C$85,IF(G77="ročně",R77*H77*$C$85,H77*R77*$C$85)))))*'Základní údaje'!$H$13*IF(L77=1,'Základní údaje'!$C$12,1) -> 0
F78: 0 | P78: 0 | Q78: 0 | R78: 0 | S78: =IF(G78="denně",R78*H78*$C$82,IF(G78="týdně",R78*H78*$C$83,IF(G78="měsíčně",R78*H78*$C$84,IF(G78="čtvrtletně",R78*H78*4*$C$85,IF(G78="ročně",R78*H78*$C$85,H78*R78*$C$85)))))*'Základní údaje'!$H$13*IF(L78=1,'Základní údaje'!$C$12,1) -> 0
F79: =C79*E79+D79*E79 -> 0 | P79: =IF(O79=0,N79*E79/60,O79*E79/60) -> 0 | Q79: =ROUND(IF(O79=0,N79/60*$C$2,O79/60*$C$2),0) -> 0 | R79: =Q79*E79 -> 0 | S79: =IF(G79="denně",R79*H79*$C$82,IF(G79="týdně",R79*H79*$C$83,IF(G79="měsíčně",R79*H79*$C$84,IF(G79="čtvrtletně",R79*H79*4*$C$85,IF(G79="ročně",R79*H79*$C$85,H79*R79*$C$85)))))*'Základní údaje'!$H$13*IF(L79=1,'Základní údaje'!$C$12,1) -> 0
A80: Plocha celkem | C80: =SUMPRODUCT(C4:C79,E4:E79) -> 3304.87 | D80: [m²]
A81: Počet kusů celkem | C81: =SUMPRODUCT(D4:D26,E4:E26) -> 0 | D81: [-]
A82: Počet pracovních dnů úklidu: | C82: =NETWORKDAYS($D$1,$E$1,$A$92:$A$158) -> 1009 | M82: =NETWORKDAYS(K82,L82,K83) -> 0
A83: Počet týdnů úklidu: | C83: =C85*52 -> 208
A84: Počet měsíců úklidu: | C84: =C85*12 -> 48
A85: Počet let úklidu | C85: =YEAR(E1)-YEAR(D1) -> 4
A86: CENA CELKEM: | C86: =ROUND(SUM(S4:S79),0) -> 0 | F86: [Kč]
A91: svátky: | C91: četnost úklidu | D91: označení | E91: období úklidu | H91: Kritéria
A92: 2019-01-01 | C92: denně | D92: 0 | E92: 1. Q | H92: =$G$3 -> uklízí se
A93: 2019-04-19 | C93: týdně | D93: 1 | E93: 2. Q | H93: =C92 -> denně
A94: 2019-04-22 | C94: měsíčně | E94: 3. Q
A95: 2019-05-01 | C95: čtvrtletně | E95: 4. Q | H95: =$G$3 -> uklízí se
A96: 2019-05-08 | C96: ročně | E96: leden | H96: =C93 -> týdně
A97: 2019-07-05 | C97: sezonně | E97: únor
A98: 2019-10-28 | E98: březen | H98: =$G$3 -> uklízí se
A99: 2019-12-24 | E99: duben | H99: =C94 -> měsíčně
A100: 2019-12-25 | E100: květen
A101: 2019-12-26 | E101: červen | H101: =$G$3 -> uklízí se
A102: 2020-01-01 | E102: červenec | H102: =C95 -> čtvrtletně
A103: 2020-04-10 | E103: srpen
A104: 2020-04-13 | E104: září | H104: =$G$3 -> uklízí se
A105: 2020-05-01 | E105: říjen | H105: =C96 -> ročně
A106: 2020-05-08 | E106: listopad
A107: 2020-07-06 | E107: prosinec
A108: 2020-09-28
A109: 2020-10-28
A110: 2020-11-17
A111: 2020-12-24
A112: 2020-12-25
A113: 2021-01-01
A114: 2021-04-02
A115: 2021-04-05
A116: 2021-07-05
A117: 2021-07-06
A118: 2021-09-28
A119: 2021-10-28
A120: 2021-11-17
A121: 2021-12-24
A122: 2022-04-15
A123: 2022-04-18
A124: 2022-07-05
A125: 2022-07-06
A126: 2022-09-28
A127: 2022-10-28
A128: 2022-11-17
A129: 2022-12-26
A130: 2023-04-07
A131: 2023-04-10
A132: 2023-05-01
A133: 2023-05-08
A134: 2023-07-05
A135: 2023-07-06
A136: 2023-09-28
A137: 2023-11-17
A138: 2023-12-25
A139: 2023-12-26
A140: 2024-01-01
A141: 2024-03-29
A142: 2024-04-01
A143: 2024-05-01
A144: 2024-05-08
A145: 2024-07-05
A146: 2024-10-28
A147: 2024-12-24
A148: 2024-12-26
A149: 2024-12-26
A150: 2025-01-01
A151: 2025-04-18
A152: 2025-04-21
A153: 2025-10-28
A154: 2025-11-17
A155: 2025-12-24
A156: 2025-12-25
A157: 2025-12-26

Sheet Karty úklidu
A1: V komentáři jsou zkratky pro tisk
A2: Karta úklidu | D2: Centrum kolejí Jarov
A3: DENNÍ ÚKLID DNE: | B3: =NOW() -> 2020-10-26T09:46:50.700
A4: ='Rozpis úklidu'!$A$3 -> Úklidová jednotka | B4: ='Rozpis úklidu'!$E$3 -> počet úklidových jednotek | C4: Doba úklidu [hod.] | D4: ='Rozpis úklidu'!$M$3 -> Popis činnosti | E4: ='Rozpis úklidu'!$R$3 -> cena celkem za všechny úklidové jednotky (prac. dny) [Kč] | F4: Správně uklizené jednotky | G4: Smluvní pokuta [Kč] | H4: Poznámka
A5: ='Rozpis úklidu'!A4 -> ZÁVĚTŘÍ - 1. NP | B5: ='Rozpis úklidu'!E4 -> 1 | C5: =IF('Rozpis úklidu'!O4=0,'Rozpis úklidu'!N4*B5/60,'Rozpis úklidu'!O4*B5/60) -> 0.08333333333 | D5: ='Rozpis úklidu'!M4 -> Zamést a odstranit odpadky a nečistoty. | E5: ='Rozpis úklidu'!Q4*F5 -> 0 | F5: =B5 -> 1 | G5: =IF(F5<B5,(B5-F5)*('Rozpis úklidu'!Q4)*2,0) -> 0
A6: ='Rozpis úklidu'!A5 -> ZÁDVEŘÍ - 1. NP | B6: ='Rozpis úklidu'!E5 -> 1 | C6: =IF('Rozpis úklidu'!O5=0,'Rozpis úklidu'!N5*B6/60,'Rozpis úklidu'!O5*B6/60) -> 0.08333333333 | D6: ='Rozpis úklidu'!M5 -> Typová činnost č.: 1 | E6: ='Rozpis úklidu'!Q5*F6 -> 0 | F6: =B6 -> 1 | G6: =IF(F6<B6,(B6-F6)*('Rozpis úklidu'!Q5)*2,0) -> 0
A7: ='Rozpis úklidu'!A6 -> VSTUPNÍ HALA - 1. NP | B7: ='Rozpis úklidu'!E6 -> 1 | C7: =IF('Rozpis úklidu'!O6=0,'Rozpis úklidu'!N6*B7/60,'Rozpis úklidu'!O6*B7/60) -> 0.74 | D7: ='Rozpis úklidu'!M6 -> Typová činnost č.: 1 | E7: ='Rozpis úklidu'!Q6*F7 -> 0 | F7: 1 | G7: =IF(F7<B7,(B7-F7)*('Rozpis úklidu'!Q6)*2,0) -> 0
A8: ='Rozpis úklidu'!A7 -> WC - 1. NP | B8: ='Rozpis úklidu'!E7 -> 1 | C8: =IF('Rozpis úklidu'!O7=0,'Rozpis úklidu'!N7*B8/60,'Rozpis úklidu'!O7*B8/60) -> 0.1333333333 | D8: ='Rozpis úklidu'!M7 -> Typová činnost č.: 14 | E8: ='Rozpis úklidu'!Q7*F8 -> 0 | F8: 1 | G8: =IF(F8<B8,(B8-F8)*('Rozpis úklidu'!Q7)*2,0) -> 0
A9: ='Rozpis úklidu'!A8 -> SCHODIŠTĚ - XPORT - 1. NP | B9: ='Rozpis úklidu'!E8 -> 1 | C9: =IF('Rozpis úklidu'!O8=0,'Rozpis úklidu'!N8*B9/60,'Rozpis úklidu'!O8*B9/60) -> 0.10225 | D9: ='Rozpis úklidu'!M8 -> Typová činnost č.: 1 | E9: ='Rozpis úklidu'!Q8*F9 -> 0 | F9: 1 | G9: =IF(F9<B9,(B9-F9)*('Rozpis úklidu'!Q8)*2,0) -> 0
A10: ='Rozpis úklidu'!A9 -> SCHODIŠTĚ VENKOVNÍ - 1. NP | B10: ='Rozpis úklidu'!E9 -> 1 | C10: =IF('Rozpis úklidu'!O9=0,'Rozpis úklidu'!N9*B10/60,'Rozpis úklidu'!O9*B10/60) -> 0.072875 | D10: ='Rozpis úklidu'!M9 -> Typová činnost č.: 1 | E10: ='Rozpis úklidu'!Q9*F10 -> 0 | F10: 1 | G10: =IF(F10<B10,(B10-F10)*('Rozpis úklidu'!Q9)*2,0) -> 0
A11: ='Rozpis úklidu'!A10 -> KANCELÁŘE - 1. NP | B11: ='Rozpis úklidu'!E10 -> 14 | C11: =IF('Rozpis úklidu'!O10=0,'Rozpis úklidu'!N10*B11/60,'Rozpis úklidu'!O10*B11/60) -> 1.362583333 | D11: ='Rozpis úklidu'!M10 -> Typová činnost č.: 3 Podlahová krytina: koberec | E11: ='Rozpis úklidu'!Q10*F11 -> 0 | F11: 14 | G11: =IF(F11<B11,(B11-F11)*('Rozpis úklidu'!Q10)*2,0) -> 0
A12: ='Rozpis úklidu'!A34 -> Kontrola a doplnění papírových ručníků a toaletního papíru na toalety | B12: ='Rozpis úklidu'!E34 -> 5 | C12: =IF('Rozpis úklidu'!O34=0,'Rozpis úklidu'!N34*B12/60,'Rozpis úklidu'!O34*B12/60) -> 0.25 | D12: ='Rozpis úklidu'!M34 -> kontrola a doplnění toaletního papíru a papírových ručníků do zásobníků na toaletách (materiál nakupuje zadavatel) | E12: ='Rozpis úklidu'!Q34*F12 -> 0 | F12: =B12 -> 5 | G12: =IF(F12<B12,(B12-F12)*('Rozpis úklidu'!Q34)*2,0) -> 0
A13: ='Rozpis úklidu'!A12 -> vstupní hala xPORT + recepce | B13: ='Rozpis úklidu'!E12 -> 1 | C13: =IF('Rozpis úklidu'!O12=0,'Rozpis úklidu'!N12*B13/60,'Rozpis úklidu'!O12*B13/60) -> 0.305625 | D13: ='Rozpis úklidu'!M12 -> Typová činnost č.: 1 Podlahová krytina: lino | E13: ='Rozpis úklidu'!Q12*F13 -> 0 | F13: =B13 -> 1 | G13: =IF(F13<B13,(B13-F13)*('Rozpis úklidu'!Q12)*2,0) -> 0
A14: =CONCATENATE('Rozpis úklidu'!A51," (",'Rozpis úklidu'!G51,")") -> ŠATNA - 1.PP (sezonně) | B14: ='Rozpis úklidu'!E51 -> 1 | C14: =IF('Rozpis úklidu'!O51=0,'Rozpis úklidu'!N51*B14/60,'Rozpis úklidu'!O51*B14/60) -> 0.0885 | D14: ='Rozpis úklidu'!M51 -> Typová činnost č.: 3 Podlahová krytina: dlažba | E14: ='Rozpis úklidu'!Q51*F14 -> 0 | F14: 1 | G14: =IF(F14<B14,(B14-F14)*('Rozpis úklidu'!Q51)*2,0) -> 0
A15: =CONCATENATE('Rozpis úklidu'!A52," (",'Rozpis úklidu'!G52,")") -> WC - 1.PP (sezonně) | B15: ='Rozpis úklidu'!E52 -> 1 | C15: =IF('Rozpis úklidu'!O52=0,'Rozpis úklidu'!N52*B15/60,'Rozpis úklidu'!O52*B15/60) -> 0.125 | D15: ='Rozpis úklidu'!M52 -> Typová činnost č.: 14 Podlahová krytina: dlažba | E15: ='Rozpis úklidu'!Q52*F15 -> 0 | F15: 1 | G15: =IF(F15<B15,(B15-F15)*('Rozpis úklidu'!Q52)*2,0) -> 0
A16: =CONCATENATE('Rozpis úklidu'!A53," (",'Rozpis úklidu'!G53,")") -> ŠATNA PROFESOŘI - 1.PP (sezonně) | B16: ='Rozpis úklidu'!E53 -> 1 | C16: =IF('Rozpis úklidu'!O53=0,'Rozpis úklidu'!N53*B16/60,'Rozpis úklidu'!O53*B16/60) -> 0.01888888889 | D16: ='Rozpis úklidu'!M53 -> Typová činnost č.: 3 Podlahová krytina: dlažba | E16: ='Rozpis úklidu'!Q53*F16 -> 0 | F16: 1 | G16: =IF(F16<B16,(B16-F16)*('Rozpis úklidu'!Q53)*2,0) -> 0
A17: =CONCATENATE('Rozpis úklidu'!A54," (",'Rozpis úklidu'!G54,")") -> SOC- PROFESOŘI - 1.PP (sezonně) | B17: ='Rozpis úklidu'!E54 -> 1 | C17: =IF('Rozpis úklidu'!O54=0,'Rozpis úklidu'!N54*B17/60,'Rozpis úklidu'!O54*B17/60) -> 0.1466666667 | D17: ='Rozpis úklidu'!M54 -> Typová činnost č.: 14 + 15 Podlahová krytina: dlažba | E17: ='Rozpis úklidu'!Q54*F17 -> 0 | F17: 1 | G17: =IF(F17<B17,(B17-F17)*('Rozpis úklidu'!Q54)*2,0) -> 0
A18: Úklidová pohotovost + Operativní úklidové práce dle požadavku vedoucí koleje | B18: ='Základní údaje'!B11 -> 0 | E18: =B18/60*F18 -> 0 | G18: 0
B19: Celkem hodin | C19: =SUM(C5:C17) -> 3.512388889 | D19: K FAKTURACI CELKEM za CKJ: | E19: =SUM(E5:E18) -> 0 | G19: =SUM(G5:G18) -> 0
A20: Podpis vedoucí směny: | D20: Podpis zástupce vedení CKJ:
A22: Karta úklidu | D22: xPORT
A23: DENNÍ ÚKLID DNE: | B23: =NOW() -> 2020-10-26T09:46:50.700
A24: ='Rozpis úklidu'!$A$3 -> Úklidová jednotka | B24: ='Rozpis úklidu'!$E$3 -> počet úklidových jednotek | C24: Doba úklidu [hod.] | D24: ='Rozpis úklidu'!$M$3 -> Popis činnosti | E24: ='Rozpis úklidu'!$R$3 -> cena celkem za všechny úklidové jednotky (prac. dny) [Kč] | F24: Správně uklizené jednotky | G24: Smluvní pokuta [Kč] | H24: Poznámka
A25: ='Rozpis úklidu'!A12 -> vstupní hala xPORT + recepce | B25: ='Rozpis úklidu'!E12 -> 1 | C25: =IF('Rozpis úklidu'!O12=0,'Rozpis úklidu'!N12*B25/60,'Rozpis úklidu'!O12*B25/60) -> 0.305625 | D25: ='Rozpis úklidu'!M12 -> Typová činnost č.: 1 Podlahová krytina: lino | E25: ='Rozpis úklidu'!Q12*F25 -> 0 | F25: =B25 -> 1 | G25: =IF(F25<B25,(B25-F25)*('Rozpis úklidu'!Q12)*2,0) -> 0
A26: ='Rozpis úklidu'!A13 -> Kuchyňka - 2. NP xPORT | B26: ='Rozpis úklidu'!E13 -> 1 | C26: =IF('Rozpis úklidu'!O13=0,'Rozpis úklidu'!N13*B26/60,'Rozpis úklidu'!O13*B26/60) -> 0.59625 | D26: ='Rozpis úklidu'!M13 -> Typová činnost č.: 5 Podlahová krytina: lino | E26: ='Rozpis úklidu'!Q13*F26 -> 0 | F26: =B26 -> 1 | G26: =IF(F26<B26,(B26-F26)*('Rozpis úklidu'!Q13)*2,0) -> 0
A27: ='Rozpis úklidu'!A14 -> WC - 2. NP xPORT | B27: ='Rozpis úklidu'!E14 -> 1 | C27: =IF('Rozpis úklidu'!O14=0,'Rozpis úklidu'!N14*B27/60,'Rozpis úklidu'!O14*B27/60) -> 0.125 | D27: ='Rozpis úklidu'!M14 -> Typová činnost č.: 14 Podlahová krytina: dlažba | E27: ='Rozpis úklidu'!Q14*F27 -> 0 | F27: 1 | G27: =IF(F27<B27,(B27-F27)*('Rozpis úklidu'!Q14)*2,0) -> 0
A28: ='Rozpis úklidu'!A15 -> Director - 2. NP xPORT | B28: ='Rozpis úklidu'!E15 -> 1 | C28: =IF('Rozpis úklidu'!O15=0,'Rozpis úklidu'!N15*B28/60,'Rozpis úklidu'!O15*B28/60) -> 0.06045833333 | D28: ='Rozpis úklidu'!M15 -> Typová činnost č.: 3 Podlahová krytina: koberec | E28: ='Rozpis úklidu'!Q15*F28 -> 0 | F28: 1 | G28: =IF(F28<B28,(B28-F28)*('Rozpis úklidu'!Q15)*2,0) -> 0
A29: ='Rozpis úklidu'!A16 -> Chill Out - 2. NP xPORT | B29: ='Rozpis úklidu'!E16 -> 1 | C29: =IF('Rozpis úklidu'!O16=0,'Rozpis úklidu'!N16*B29/60,'Rozpis úklidu'!O16*B29/60) -> 0.23775 | D29: ='Rozpis úklidu'!M16 -> Typová činnost č.: 3 Podlahová krytina: lino+koberec | E29: ='Rozpis úklidu'!Q16*F29 -> 0 | F29: 1 | G29: =IF(F29<B29,(B29-F29)*('Rozpis úklidu'!Q16)*2,0) -> 0
A30: ='Rozpis úklidu'!A17 -> Kuchyňka - 3. NP xPORT | B30: ='Rozpis úklidu'!E17 -> 1 | C30: =IF('Rozpis úklidu'!O17=0,'Rozpis úklidu'!N17*B30/60,'Rozpis úklidu'!O17*B30/60) -> 0.0475 | D30: ='Rozpis úklidu'!M17 -> Typová činnost č.: 5 Podlahová krytina: lino | E30: ='Rozpis úklidu'!Q17*F30 -> 0 | F30: 1 | G30: =IF(F30<B30,(B30-F30)*('Rozpis úklidu'!Q17)*2,0) -> 0
A31: ='Rozpis úklidu'!A18 -> Kanceláře - 3. NP xPORT | B31: ='Rozpis úklidu'!E18 -> 7 | C31: =IF('Rozpis úklidu'!O18=0,'Rozpis úklidu'!N18*B31/60,'Rozpis úklidu'!O18*B31/60) -> 1.219458333 | D31: ='Rozpis úklidu'!M18 -> Typová činnost č.: 3 Podlahová krytina: koberec | E31: ='Rozpis úklidu'!Q18*F31 -> 0 | F31: 7 | G31: =IF(F31<B31,(B31-F31)*('Rozpis úklidu'!Q18)*2,0) -> 0
A32: ='Rozpis úklidu'!A19 -> WC - 3. NP xPORT | B32: ='Rozpis úklidu'!E19 -> 1 | C32: =IF('Rozpis úklidu'!O19=0,'Rozpis úklidu'!N19*B32/60,'Rozpis úklidu'!O19*B32/60) -> 0.125 | D32: ='Rozpis úklidu'!M19 -> Typová činnost č.: 14 Podlahová krytina: dlažba | E32: ='Rozpis úklidu'!Q19*F32 -> 0 | F32: 1 | G32: =IF(F32<B32,(B32-F32)*('Rozpis úklidu'!Q19)*2,0) -> 0
A33: ='Rozpis úklidu'!A20 -> Bay Bridge - 2. NP xPORT | B33: ='Rozpis úklidu'!E20 -> 1 | C33: =IF('Rozpis úklidu'!O20=0,'Rozpis úklidu'!N20*B33/60,'Rozpis úklidu'!O20*B33/60) -> 0.2545 | D33: ='Rozpis úklidu'!M20 -> Typová činnost č.: 3 Podlahová krytina: koberec | E33: ='Rozpis úklidu'!Q20*F33 -> 0 | F33: =B33 -> 1 | G33: =IF(F33<B33,(B33-F33)*('Rozpis úklidu'!Q20)*2,0) -> 0
A34: ='Rozpis úklidu'!A21 -> San Francisco - 2. NP xPORT | B34: ='Rozpis úklidu'!E21 -> 1 | C34: =IF('Rozpis úklidu'!O21=0,'Rozpis úklidu'!N21*B34/60,'Rozpis úklidu'!O21*B34/60) -> 0.3495555556 | D34: ='Rozpis úklidu'!M21 -> Typová činnost č.: 3 Podlahová krytina: koberec | E34: ='Rozpis úklidu'!Q21*F34 -> 0 | F34: =B34 -> 1 | G34: =IF(F34<B34,(B34-F34)*('Rozpis úklidu'!Q21)*2,0) -> 0
A35: ='Rozpis úklidu'!A22 -> Recepce - 2. NP xPORT | B35: ='Rozpis úklidu'!E22 -> 1 | C35: =IF('Rozpis úklidu'!O22=0,'Rozpis úklidu'!N22*B35/60,'Rozpis úklidu'!O22*B35/60) -> 0.6732777778 | D35: ='Rozpis úklidu'!M22 -> Typová činnost č.: 1 Podlahová krytina: lino | E35: ='Rozpis úklidu'!Q22*F35 -> 0 | F35: 1 | G35: =IF(F35<B35,(B35-F35)*('Rozpis úklidu'!Q22)*2,0) -> 0
A36: ='Rozpis úklidu'!A23 -> Open Space - 2. NP xPORT | B36: ='Rozpis úklidu'!E23 -> 1 | C36: =IF('Rozpis úklidu'!O23=0,'Rozpis úklidu'!N23*B36/60,'Rozpis úklidu'!O23*B36/60) -> 1.742444444 | D36: ='Rozpis úklidu'!M23 -> Typová činnost č.: 3 Podlahová krytina: koberec | E36: ='Rozpis úklidu'!Q23*F36 -> 0 | F36: 1 | G36: =IF(F36<B36,(B36-F36)*('Rozpis úklidu'!Q23)*2,0) -> 0
A37: ='Rozpis úklidu'!A24 -> Lobby - 2. NP xPORT | B37: ='Rozpis úklidu'!E24 -> 1 | C37: =IF('Rozpis úklidu'!O24=0,'Rozpis úklidu'!N24*B37/60,'Rozpis úklidu'!O24*B37/60) -> 0.147 | D37: ='Rozpis úklidu'!M24 -> Typová činnost č.: 3 Podlahová krytina: lino | E37: ='Rozpis úklidu'!Q24*F37 -> 0 | F37: 1 | G37: =IF(F37<B37,(B37-F37)*('Rozpis úklidu'!Q24)*2,0) -> 0
A38: ='Rozpis úklidu'!A25 -> Chodba - 2. NP xPORT | B38: ='Rozpis úklidu'!E25 -> 1 | C38: =IF('Rozpis úklidu'!O25=0,'Rozpis úklidu'!N25*B38/60,'Rozpis úklidu'!O25*B38/60) -> 0.09155555556 | D38: ='Rozpis úklidu'!M25 -> Typová činnost č.: 1 Podlahová krytina: koberec | E38: ='Rozpis úklidu'!Q25*F38 -> 0 | F38: 1 | G38: =IF(F38<B38,(B38-F38)*('Rozpis úklidu'!Q25)*2,0) -> 0
A39: ='Rozpis úklidu'!A26 -> World Trade Centre - 2. NP xPORT | B39: ='Rozpis úklidu'!E26 -> 1 | C39: =IF('Rozpis úklidu'!O26=0,'Rozpis úklidu'!N26*B39/60,'Rozpis úklidu'!O26*B39/60) -> 0.2423888889 | D39: ='Rozpis úklidu'!M26 -> Typová činnost č.: 3 Podlahová krytina: koberec | E39: ='Rozpis úklidu'!Q26*F39 -> 0 | F39: 1 | G39: =IF(F39<B39,(B39-F39)*('Rozpis úklidu'!Q26)*2,0) -> 0
A40: ='Rozpis úklidu'!A27 -> Malé zas. místnosti - 2. NP xPORT | B40: ='Rozpis úklidu'!E27 -> 1 | C40: =IF('Rozpis úklidu'!O27=0,'Rozpis úklidu'!N27*B40/60,'Rozpis úklidu'!O27*B40/60) -> 0.2776666667 | D40: ='Rozpis úklidu'!M27 -> Typová činnost č.: 3 Podlahová krytina: koberec | E40: ='Rozpis úklidu'!Q27*F40 -> 0 | F40: 1 | G40: =IF(F40<B40,(B40-F40)*('Rozpis úklidu'!Q27)*2,0) -> 0
A41: ='Rozpis úklidu'!A28 -> Area 51 - 2. NP xPORT | B41: ='Rozpis úklidu'!E28 -> 1 | C41: =IF('Rozpis úklidu'!O28=0,'Rozpis úklidu'!N28*B41/60,'Rozpis úklidu'!O28*B41/60) -> 0.1405 | D41: ='Rozpis úklidu'!M28 -> Typová činnost č.: 3 Podlahová krytina: koberec | E41: ='Rozpis úklidu'!Q28*F41 -> 0 | F41: 1 | G41: =IF(F41<B41,(B41-F41)*('Rozpis úklidu'!Q28)*2,0) -> 0
A42: ='Rozpis úklidu'!A29 -> Call rooms - 2. NP xPORT | B42: ='Rozpis úklidu'!E29 -> 1 | C42: =IF('Rozpis úklidu'!O29=0,'Rozpis úklidu'!N29*B42/60,'Rozpis úklidu'!O29*B42/60) -> 0.07044444444 | D42: ='Rozpis úklidu'!M29 -> Typová činnost č.: 3 Podlahová krytina: koberec | E42: ='Rozpis úklidu'!Q29*F42 -> 0 | F42: 1 | G42: =IF(F42<B42,(B42-F42)*('Rozpis úklidu'!Q29)*2,0) -> 0
A43: ='Rozpis úklidu'!A30 -> Manhattan - 2. NP xPORT | B43: ='Rozpis úklidu'!E30 -> 1 | C43: =IF('Rozpis úklidu'!O30=0,'Rozpis úklidu'!N30*B43/60,'Rozpis úklidu'!O30*B43/60) -> 0.1518333333 | D43: ='Rozpis úklidu'!M30 -> Typová činnost č.: 3 Podlahová krytina: koberec | E43: ='Rozpis úklidu'!Q30*F43 -> 0 | F43: 1 | G43: =IF(F43<B43,(B43-F43)*('Rozpis úklidu'!Q30)*2,0) -> 0
A44: ='Rozpis úklidu'!A31 -> Chodba - 3. NP xPORT | B44: ='Rozpis úklidu'!E31 -> 1 | C44: =IF('Rozpis úklidu'!O31=0,'Rozpis úklidu'!N31*B44/60,'Rozpis úklidu'!O31*B44/60) -> 0.03236111111 | D44: ='Rozpis úklidu'!M31 -> Typová činnost č.: 1 Podlahová krytina: koberec | E44: ='Rozpis úklidu'!Q31*F44 -> 0 | F44: 1 | G44: =IF(F44<B44,(B44-F44)*('Rozpis úklidu'!Q31)*2,0) -> 0
A45: ='Rozpis úklidu'!A32 -> Open Space - 3. NP xPORT | B45: ='Rozpis úklidu'!E32 -> 1 | C45: =IF('Rozpis úklidu'!O32=0,'Rozpis úklidu'!N32*B45/60,'Rozpis úklidu'!O32*B45/60) -> 0.6662777778 | D45: ='Rozpis úklidu'!M32 -> Typová činnost č.: 3 Podlahová krytina: koberec | E45: ='Rozpis úklidu'!Q32*F45 -> 0 | F45: 1 | G45: =IF(F45<B45,(B45-F45)*('Rozpis úklidu'!Q32)*2,0) -> 0
A46: ='Rozpis úklidu'!A33 -> Schodiště - 3. NP xPORT | B46: ='Rozpis úklidu'!E33 -> 1 | C46: =IF('Rozpis úklidu'!O33=0,'Rozpis úklidu'!N33*B46/60,'Rozpis úklidu'!O33*B46/60) -> 0.045125 | D46: ='Rozpis úklidu'!M33 -> Typová činnost č.: 1 Podlahová krytina: koberec | E46: ='Rozpis úklidu'!Q33*F46 -> 0 | F46: 1 | G46: =IF(F46<B46,(B46-F46)*('Rozpis úklidu'!Q33)*2,0) -> 0
A47: Úklidová pohotovost + Operativní úklidové práce dle požadavku vedoucí koleje | B47: ='Základní údaje'!B30 -> 0 | E47: =B47/60*F47 -> 0 | G47: 0
B48: Celkem hodin | C48: =SUM(C25:C46) -> 7.601972222 | D48: K FAKTURACI CELKEM za xPORT: | E48: =SUM(E25:E47) -> 0 | G48: =SUM(G25:G47) -> 0
A49: Podpis vedoucí směny: | D49: Podpis zástupce vedení xPORT:
A51: Karta úklidu | D51: =$D$2 -> Centrum kolejí Jarov
A52: TÝDENNÍ ÚKLID TÝDEN: | B52: =WEEKNUM(TODAY(),1) -> 44 | D52: =(NOW()) -> 2020-10-26T09:46:50.700
A53: ='Rozpis úklidu'!$A$3 -> Úklidová jednotka | B53: ='Rozpis úklidu'!$E$3 -> počet úklidových jednotek | C53: Doba úklidu [hod.] | D53: ='Rozpis úklidu'!$M$3 -> Popis činnosti | E53: ='Rozpis úklidu'!$R$3 -> cena celkem za všechny úklidové jednotky (prac. dny) [Kč] | F53: Správně uklizené jednotky | G53: Smluvní pokuta [Kč] | H53: Poznámka
A54: ='Rozpis úklidu'!A35 -> VSTUPNÍ HALA - 1.PP | B54: ='Rozpis úklidu'!E35/('Rozpis úklidu'!J35-'Rozpis úklidu'!I35+1)*'Rozpis úklidu'!H35 -> 2 | C54: =IF('Rozpis úklidu'!O35=0,'Rozpis úklidu'!N35*B54/60,'Rozpis úklidu'!O35*B54/60) -> 0.2677777778 | D54: ='Rozpis úklidu'!M35 -> Typová činnost č.: 1 Podlahová krytina: dlažba | E54: ='Rozpis úklidu'!Q35*F54 -> 0 | F54: =B54 -> 2 | G54: =IF(F54<B54,(B54-F54)*('Rozpis úklidu'!Q35)*2,0) -> 0
A55: ='Rozpis úklidu'!A36 -> SCHODIŠTĚ- K TĚLOCV. - 1.PP | B55: ='Rozpis úklidu'!E36/('Rozpis úklidu'!J36-'Rozpis úklidu'!I36+1)*'Rozpis úklidu'!H36 -> 2 | C55: =IF('Rozpis úklidu'!O36=0,'Rozpis úklidu'!N36*B55/60,'Rozpis úklidu'!O36*B55/60) -> 0.09 | D55: ='Rozpis úklidu'!M36 -> Typová činnost č.: 1 | E55: ='Rozpis úklidu'!Q36*F55 -> 0 | F55: =B55 -> 2 | G55: =IF(F55<B55,(B55-F55)*('Rozpis úklidu'!Q36)*2,0) -> 0
A56: ='Rozpis úklidu'!A37 -> CHODBA - 1.PP | B56: ='Rozpis úklidu'!E37/('Rozpis úklidu'!J37-'Rozpis úklidu'!I37+1)*'Rozpis úklidu'!H37 -> 2 | C56: =IF('Rozpis úklidu'!O37=0,'Rozpis úklidu'!N37*B56/60,'Rozpis úklidu'!O37*B56/60) -> 0.07127777778 | D56: ='Rozpis úklidu'!M37 -> Typová činnost č.: 1 Podlahová krytina: dlažba | E56: ='Rozpis úklidu'!Q37*F56 -> 0 | F56: 2 | G56: =IF(F56<B56,(B56-F56)*('Rozpis úklidu'!Q37)*2,0) -> 0
A57: ='Rozpis úklidu'!A38 -> HALA 1 - 1. NP | B57: ='Rozpis úklidu'!E38/('Rozpis úklidu'!J38-'Rozpis úklidu'!I38+1)*'Rozpis úklidu'!H38 -> 2 | C57: =IF('Rozpis úklidu'!O38=0,'Rozpis úklidu'!N38*B57/60,'Rozpis úklidu'!O38*B57/60) -> 1.302916667 | D57: ='Rozpis úklidu'!M38 -> Typová činnost č.: 1 Podlahová krytina: koberce | E57: ='Rozpis úklidu'!Q38*F57 -> 0 | F57: 2 | G57: =IF(F57<B57,(B57-F57)*('Rozpis úklidu'!Q38)*2,0) -> 0
A58: ='Rozpis úklidu'!A39 -> HALA 2 - 1. NP | B58: ='Rozpis úklidu'!E39/('Rozpis úklidu'!J39-'Rozpis úklidu'!I39+1)*'Rozpis úklidu'!H39 -> 2 | C58: =IF('Rozpis úklidu'!O39=0,'Rozpis úklidu'!N39*B58/60,'Rozpis úklidu'!O39*B58/60) -> 0.5501388889 | D58: ='Rozpis úklidu'!M39 -> Typová činnost č.: 1 Podlahová krytina: dlažba | E58: ='Rozpis úklidu'!Q39*F58 -> 0 | F58: 2 | G58: =IF(F58<B58,(B58-F58)*('Rozpis úklidu'!Q39)*2,0) -> 0
A59: ='Rozpis úklidu'!A40 -> VÝTAH - 1. NP | B59: ='Rozpis úklidu'!E40/('Rozpis úklidu'!J40-'Rozpis úklidu'!I40+1)*'Rozpis úklidu'!H40 -> 2 | C59: =IF('Rozpis úklidu'!O40=0,'Rozpis úklidu'!N40*B59/60,'Rozpis úklidu'!O40*B59/60) -> 0.1666666667 | D59: ='Rozpis úklidu'!M40 -> Typová činnost č.: 11 | E59: ='Rozpis úklidu'!Q40*F59 -> 0 | F59: 2 | G59: =IF(F59<B59,(B59-F59)*('Rozpis úklidu'!Q40)*2,0) -> 0
A60: ='Rozpis úklidu'!A41 -> SCHODIŠTĚ- K TĚLOCV. - 1. NP | B60: ='Rozpis úklidu'!E41/('Rozpis úklidu'!J41-'Rozpis úklidu'!I41+1)*'Rozpis úklidu'!H41 -> 2 | C60: =IF('Rozpis úklidu'!O41=0,'Rozpis úklidu'!N41*B60/60,'Rozpis úklidu'!O41*B60/60) -> 0.08266666667 | D60: ='Rozpis úklidu'!M41 -> Typová činnost č.: 1 | E60: ='Rozpis úklidu'!Q41*F60 -> 0 | F60: 2 | G60: =IF(F60<B60,(B60-F60)*('Rozpis úklidu'!Q41)*2,0) -> 0
A61: ='Rozpis úklidu'!A42 -> ZASEDACÍ MÍSTNOST - 1. NP | B61: ='Rozpis úklidu'!E42/('Rozpis úklidu'!J42-'Rozpis úklidu'!I42+1)*'Rozpis úklidu'!H42 -> 2 | C61: =IF('Rozpis úklidu'!O42=0,'Rozpis úklidu'!N42*B61/60,'Rozpis úklidu'!O42*B61/60) -> 0.4013333333 | D61: ='Rozpis úklidu'!M42 -> Typová činnost č.: 3 | E61: ='Rozpis úklidu'!Q42*F61 -> 0 | F61: 2 | G61: =IF(F61<B61,(B61-F61)*('Rozpis úklidu'!Q42)*2,0) -> 0
A62: ='Rozpis úklidu'!A43 -> HALA - OSOBNÍ VÝTAH - 1. NP | B62: ='Rozpis úklidu'!E43/('Rozpis úklidu'!J43-'Rozpis úklidu'!I43+1)*'Rozpis úklidu'!H43 -> 2 | C62: =IF('Rozpis úklidu'!O43=0,'Rozpis úklidu'!N43*B62/60,'Rozpis úklidu'!O43*B62/60) -> 0.1375 | D62: ='Rozpis úklidu'!M43 -> Typová činnost č.: 1 a 11 | E62: ='Rozpis úklidu'!Q43*F62 -> 0 | F62: 2 | G62: =IF(F62<B62,(B62-F62)*('Rozpis úklidu'!Q43)*2,0) -> 0
A63: ='Rozpis úklidu'!A44 -> SCHODIŠŤOVÝ PROSTOR - 3.NP | B63: ='Rozpis úklidu'!E44/('Rozpis úklidu'!J44-'Rozpis úklidu'!I44+1)*'Rozpis úklidu'!H44 -> 1 | C63: =IF('Rozpis úklidu'!O44=0,'Rozpis úklidu'!N44*B63/60,'Rozpis úklidu'!O44*B63/60) -> 0.14825 | D63: ='Rozpis úklidu'!M44 -> Typová činnost č.: 1 Podlahová krytina: dlažba | E63: ='Rozpis úklidu'!Q44*F63 -> 0 | F63: 1 | G63: =IF(F63<B63,(B63-F63)*('Rozpis úklidu'!Q44)*2,0) -> 0
A64: ='Rozpis úklidu'!A45 -> SPOLEČNÁ CHODBA - 3.NP | B64: ='Rozpis úklidu'!E45/('Rozpis úklidu'!J45-'Rozpis úklidu'!I45+1)*'Rozpis úklidu'!H45 -> 1 | C64: =IF('Rozpis úklidu'!O45=0,'Rozpis úklidu'!N45*B64/60,'Rozpis úklidu'!O45*B64/60) -> 0.04938888889 | D64: ='Rozpis úklidu'!M45 -> Typová činnost č.: 1 Podlahová krytina: dlažba | E64: ='Rozpis úklidu'!Q45*F64 -> 0 | F64: 1 | G64: =IF(F64<B64,(B64-F64)*('Rozpis úklidu'!Q45)*2,0) -> 0
A65: =CONCATENATE('Rozpis úklidu'!A59," (",'Rozpis úklidu'!G59,")") -> CVIČEBNÍ SÁL A - 1.PP (sezonně) | B65: =CEILING('Rozpis úklidu'!E59/('Rozpis úklidu'!J59-'Rozpis úklidu'!I59+1)*'Rozpis úklidu'!H59,1) -> 1 | C65: =IF('Rozpis úklidu'!O59=0,'Rozpis úklidu'!N59*B65/60,'Rozpis úklidu'!O59*B65/60) -> 0.297 | D65: ='Rozpis úklidu'!M59 -> Typová činnost č.: 3 | E65: ='Rozpis úklidu'!Q59*F65 -> 0 | F65: 1 | G65: =IF(F65<B65,(B65-F65)*('Rozpis úklidu'!Q59)*2,0) -> 0
A66: =CONCATENATE('Rozpis úklidu'!A60," (",'Rozpis úklidu'!G60,")") -> CVIČEBNÍ SÁL B - 1.PP (sezonně) | B66: =CEILING('Rozpis úklidu'!E60/('Rozpis úklidu'!J60-'Rozpis úklidu'!I60+1)*'Rozpis úklidu'!H60,1) -> 1 | C66: =IF('Rozpis úklidu'!O60=0,'Rozpis úklidu'!N60*B66/60,'Rozpis úklidu'!O60*B66/60) -> 0.8055555556 | D66: ='Rozpis úklidu'!M60 -> Typová činnost č.: 3 | E66: ='Rozpis úklidu'!Q60*F66 -> 0 | F66: 1 | G66: =IF(F66<B66,(B66-F66)*('Rozpis úklidu'!Q60)*2,0) -> 0
A67: =CONCATENATE('Rozpis úklidu'!A61," (",'Rozpis úklidu'!G61,")") -> CHODBA - U TĚLOCVIČNY - 1.PP (sezonně) | B67: =CEILING('Rozpis úklidu'!E61/('Rozpis úklidu'!J61-'Rozpis úklidu'!I61+1)*'Rozpis úklidu'!H61,1) -> 2 | C67: =IF('Rozpis úklidu'!O61=0,'Rozpis úklidu'!N61*B67/60,'Rozpis úklidu'!O61*B67/60) -> 0.1823333333 | D67: ='Rozpis úklidu'!M61 -> Typová činnost č.: 1 Podlahová krytina: dlažba | E67: ='Rozpis úklidu'!Q61*F67 -> 0 | F67: 2 | G67: =IF(F67<B67,(B67-F67)*('Rozpis úklidu'!Q61)*2,0) -> 0
A68: =CONCATENATE('Rozpis úklidu'!A65," (",'Rozpis úklidu'!G65,")") -> ŠATNY - sport. areál (sezonně) | B68: =CEILING('Rozpis úklidu'!E65/('Rozpis úklidu'!J65-'Rozpis úklidu'!I65+1)*'Rozpis úklidu'!H65,1) -> 3 | C68: =IF('Rozpis úklidu'!O65=0,'Rozpis úklidu'!N65*B68/60,'Rozpis úklidu'!O62*B68/60) -> 0.8503333333 | D68: ='Rozpis úklidu'!M65 -> Typová činnost č.: 3 Podlahová krytina: dlažba | E68: ='Rozpis úklidu'!Q65*F68 -> 0 | F68: 3 | G68: =IF(F68<B68,(B68-F68)*('Rozpis úklidu'!Q65)*2,0) -> 0
A69: =CONCATENATE('Rozpis úklidu'!A66," (",'Rozpis úklidu'!G66,")") -> CHODBA - sport. areál (sezonně) | B69: =CEILING('Rozpis úklidu'!E66/('Rozpis úklidu'!J66-'Rozpis úklidu'!I66+1)*'Rozpis úklidu'!H66,1) -> 3 | C69: =IF('Rozpis úklidu'!O66=0,'Rozpis úklidu'!N66*B69/60,'Rozpis úklidu'!O63*B69/60) -> 0.3495 | D69: ='Rozpis úklidu'!M66 -> Typová činnost č.: 1 Podlahová krytina: dlažba | E69: ='Rozpis úklidu'!Q66*F69 -> 0 | F69: 3 | G69: =IF(F69<B69,(B69-F69)*('Rozpis úklidu'!Q66)*2,0) -> 0
A70: =CONCATENATE('Rozpis úklidu'!A67," (",'Rozpis úklidu'!G67,")") -> KOUPELNY A WC - sport. areál (sezonně) | B70: =CEILING('Rozpis úklidu'!E67/('Rozpis úklidu'!J67-'Rozpis úklidu'!I67+1)*'Rozpis úklidu'!H67,1) -> 3 | C70: =IF('Rozpis úklidu'!O67=0,'Rozpis úklidu'!N67*B70/60,'Rozpis úklidu'!O64*B70/60) -> 4.404166667 | D70: ='Rozpis úklidu'!M67 -> Typová činnost č.: 14 + 15 Podlahová krytina: dlažba | E70: ='Rozpis úklidu'!Q67*F70 -> 0 | F70: 3 | G70: =IF(F70<B70,(B70-F70)*('Rozpis úklidu'!Q67)*2,0) -> 0
B71: celkem hodin/den | C71: =SUM(C54:C70)/5 -> 2.031361111 | D71: K FAKTURACI CELKEM za CKJ: | E71: =SUM(E54:E70) -> 0 | G71: =SUM(G54:G70) -> 0
A72: Podpis vedoucí směny: | D72: Podpis zástupce vedení CKJ:
A74: Karta úklidu | D74: =$D$22 -> xPORT
A75: TÝDENNÍ ÚKLID TÝDEN: | B75: =WEEKNUM(TODAY(),1) -> 44 | D75: =(NOW()) -> 2020-10-26T09:46:50.700
A76: ='Rozpis úklidu'!$A$3 -> Úklidová jednotka | B76: ='Rozpis úklidu'!$E$3 -> počet úklidových jednotek | C76: Doba úklidu [hod.] | D76: ='Rozpis úklidu'!$M$3 -> Popis činnosti | E76: ='Rozpis úklidu'!$R$3 -> cena celkem za všechny úklidové jednotky (prac. dny) [Kč] | F76: Správně uklizené jednotky | G76: Smluvní pokuta [Kč] | H76: Poznámka
A77: ='Rozpis úklidu'!A46 -> Mezipatro - 3. NP xPORT | B77: ='Rozpis úklidu'!E46/('Rozpis úklidu'!J46-'Rozpis úklidu'!I46+1)*'Rozpis úklidu'!H46 -> 1 | C77: =IF('Rozpis úklidu'!O46=0,'Rozpis úklidu'!N46*B77/60,'Rozpis úklidu'!O46*B77/60) -> 0.1145833333 | D77: ='Rozpis úklidu'!M46 -> Typová činnost č.: 1 Podlahová krytina: koberec | E77: ='Rozpis úklidu'!Q46*F77 -> 0 | F77: 1 | G77: =IF(F77<B77,(B77-F77)*('Rozpis úklidu'!Q46)*2,0) -> 0
B78: celkem hodin/den | C78: =SUM(C77:C77)/5 -> 0.02291666667 | D78: K FAKTURACI CELKEM za xPORT: | E78: =SUM(E77:E77) -> 0 | G78: =SUM(G77:G77) -> 0
A79: Podpis vedoucí směny: | D79: Podpis zástupce vedení xPORT:
A81: Karta úklidu | D81: =$D$2 -> Centrum kolejí Jarov
A82: MĚSÍČNÍ ÚKLID MĚSÍC: | B82: =MONTH(D82) -> 10 | D82: =NOW() -> 2020-10-26T09:46:50.700
A83: ='Rozpis úklidu'!$A$3 -> Úklidová jednotka | B83: ='Rozpis úklidu'!$E$3 -> počet úklidových jednotek | C83: Doba úklidu [hod.] | D83: ='Rozpis úklidu'!$M$3 -> Popis činnosti | E83: ='Rozpis úklidu'!$R$3 -> cena celkem za všechny úklidové jednotky (prac. dny) [Kč] | F83: Správně uklizené jednotky | G83: Smluvní pokuta [Kč] | H83: Poznámka
A84: ='Rozpis úklidu'!A47 -> SPRCHY - 1. NP (muži, ženy) | B84: ='Rozpis úklidu'!E47/('Rozpis úklidu'!J47-'Rozpis úklidu'!I47+1)*'Rozpis úklidu'!H47 -> 2 | C84: =IF('Rozpis úklidu'!O47=0,'Rozpis úklidu'!N47*B84/60,'Rozpis úklidu'!O47*B84/60) -> 0.35 | D84: ='Rozpis úklidu'!M47 -> Typová činnost č.: 15 Podlahová krytina: dlažba | E84: ='Rozpis úklidu'!Q47*F84 -> 0 | F84: =B84 -> 2 | G84: =IF(F84<B84,(B84-F84)*('Rozpis úklidu'!Q47)*2,0) -> 0
A85: =CONCATENATE('Rozpis úklidu'!A71," (",'Rozpis úklidu'!G71,")") -> NÁŘAĎOVNA - 1.PP (sezonně) | B85: =CEILING('Rozpis úklidu'!E71/('Rozpis úklidu'!J71-'Rozpis úklidu'!I71+1)*'Rozpis úklidu'!H71,1) -> 1 | C85: =IF('Rozpis úklidu'!O71=0,'Rozpis úklidu'!N71*B85/60,'Rozpis úklidu'!O71*B85/60) -> 0.03722222222 | D85: ='Rozpis úklidu'!M71 -> Typová činnost č.: 3 | E85: ='Rozpis úklidu'!Q71*F85 -> 0 | F85: =B85 -> 1 | G85: =IF(F85<B85,(B85-F85)*('Rozpis úklidu'!Q71)*2,0) -> 0
B86: celkem hodin/den | C86: =SUM(C84:C85)/21 -> 0.01843915344 | D86: K FAKTURACI CELKEM za CKJ: | E86: =SUM(E84:E85) -> 0 | G86: =SUM(G84:G85) -> 0
A87: Podpis vedoucí směny: | D87: Podpis zástupce vedení CKJ:
A89: Karta úklidu | D89: =$D$22 -> xPORT
A90: MĚSÍČNÍ ÚKLID MĚSÍC: | B90: =MONTH(D90) -> 10 | D90: =NOW() -> 2020-10-26T09:46:50.700
A91: ='Rozpis úklidu'!$A$3 -> Úklidová jednotka | B91: ='Rozpis úklidu'!$E$3 -> počet úklidových jednotek | C91: Doba úklidu [hod.] | D91: ='Rozpis úklidu'!$M$3 -> Popis činnosti | E91: ='Rozpis úklidu'!$R$3 -> cena celkem za všechny úklidové jednotky (prac. dny) [Kč] | F91: Správně uklizené jednotky | G91: Smluvní pokuta [Kč] | H91: Poznámka
A92: ='Rozpis úklidu'!A48 -> Schod. ze SÚZ do xPORT - 2. NP xPORT | B92: ='Rozpis úklidu'!E48/('Rozpis úklidu'!J48-'Rozpis úklidu'!I48+1)*'Rozpis úklidu'!H48 -> 1 | C92: =IF('Rozpis úklidu'!O48=0,'Rozpis úklidu'!N48*B92/60,'Rozpis úklidu'!O48*B92/60) -> 0.07429166667 | D92: ='Rozpis úklidu'!M48 -> Typová činnost č.: 1 Podlahová krytina: dlažba | E92: ='Rozpis úklidu'!Q48*F92 -> 0 | F92: =B92 -> 1 | G92: =IF(F92<B92,(B92-F92)*('Rozpis úklidu'!Q48)*2,0) -> 0
A93: ='Rozpis úklidu'!A49 -> Schodiště u výtahu - 2. NP xPORT | B93: ='Rozpis úklidu'!E49/('Rozpis úklidu'!J49-'Rozpis úklidu'!I49+1)*'Rozpis úklidu'!H49 -> 1 | C93: =IF('Rozpis úklidu'!O49=0,'Rozpis úklidu'!N49*B93/60,'Rozpis úklidu'!O49*B93/60) -> 0.046375 | D93: ='Rozpis úklidu'!M49 -> Typová činnost č.: 1 Podlahová krytina: dlažba | E93: ='Rozpis úklidu'!Q49*F93 -> 0 | F93: =B93 -> 1 | G93: =IF(F93<B93,(B93-F93)*('Rozpis úklidu'!Q49)*2,0) -> 0
A94: ='Rozpis úklidu'!A50 -> Terasa - 3. NP xPORT | B94: ='Rozpis úklidu'!E50/('Rozpis úklidu'!J50-'Rozpis úklidu'!I50+1)*'Rozpis úklidu'!H50 -> 1 | C94: =IF('Rozpis úklidu'!O50=0,'Rozpis úklidu'!N50*B94/60,'Rozpis úklidu'!O50*B94/60) -> 0.4221527778 | D94: ='Rozpis úklidu'!M50 -> Typová činnost č.: 2 Podlahová krytina: plast | E94: ='Rozpis úklidu'!Q50*F94 -> 0 | F94: =B94 -> 1 | G94: =IF(F94<B94,(B94-F94)*('Rozpis úklidu'!Q50)*2,0) -> 0
B95: celkem hodin/den | C95: =SUM(C92:C94)/21 -> 0.02584854497 | D95: K FAKTURACI CELKEM za xPORT: | E95: =SUM(E92:E94) -> 0 | G95: =SUM(G92:G94) -> 0
A96: Podpis vedoucí směny: | D96: Podpis zástupce vedení xPORT:

Sheet Činnosti úklidu
B1: Úklidová činnost
B2: Úklidová činnost probíhá v čase od 17:00 hod. do 24:00 hod. v jednosměnném provozu v pětidenním pracovním týdnu. V 17:00 začne úklid v prostorách CKJ a po té bude pokračovat v prostorách xPORTU. Při úklidu je potřeba používat úklidové, čistící a desinfekční prostředky vhodné pro daný předmět úklidu a dodržovat návody na použití příslušných úklidových, čistících a desinfekčních prostředků a bezpečnostní a hygienická pravidla.
A3: Definice pojmů:
A4: Zametání | B4: pomocí vhodného smetáku zamést dané podlahové plochy.
A5: Vytírání | B5: pomocí mopu za použití vody a odpovídajícího čistících prostředku vytřít dané podlahové plochy.
A6: Mytí | B6: pomocí hadru, utěrky nebo houbičky, za použití vody a odpovídajícího čistícího prostředku, umýt plochy nábytku, dveří, spotřebičů, keramických a jiných obkladů, topení apod.
A7: Čištění | B7: důkladné čištění, zvláště skvrn, za pomocí odpovídajících čisticích prostředků, ploch nábytku, dveří, spotřebičů, keramických a jiných obkladů, topení apod.
A8: Desinfekce | B8: po umytí nebo vyčištění daných ploch, podlah, spotřebičů aj. použít podle návodu odpovídající desinfekční prostředek.
A9: Leštění | B9: leštění všech skleněných a zrcadlových ploch za použití odpovídajícího přípravku na mytí a leštění skel.
A10: Luxování | B10: čištění podlah za použití vysavače.
A11: Strojové čištění | B11: se provádí za použití čistícího stroje na vodní nebo parní bázi (strojové čištění postelí, matrací, koberců apod.).
A12: Stírání prachu | B12: setření prachu vhodnou utěrkou za použití odpovídajícího přípravku na odstranění prachu, odstranění pavučin.
A13: Úklid odpadů | B13: řádné uvolnění, umytí, vyčištění a vydesinfikování odpadů na soc. zařízeních, WC, umývárnách a sprchových koutech za použití odpovídajících přípravků.
A14: Mimořádný úklid | B14: úklid znečištěného WC (mimo mísu), umývárny nebo společných prostor zvratky nebo exkrementy (uklízečka vyrozumí vedoucí/zástupce vedoucí koleje).
A15: Mytí oken | B15: umytí parapetů na mokro za použití odpovídajícího saponátu, umytí rámů oken na mokro za použití odpovídajícího saponátu, umytí a vyleštění oken odpovídajícím přípravkem na mytí a leštění oken.
A16: Zalévání květin | B16: zalití květin čistou odstátou vodou v přiměřeném množství s ohledem na druh rostliny, podle potřeby použít odpovídající hnojivo v dávkování podle návodu k použití.
A17: Vynášení a likvidace odpadu | B17: vynesení odpadu ze všech odpadních nádob (i z prostoru okolo těchto nádob), a ze skartovaček, umytí odpadních nádob a doplnění pytlů na odpadky do odpadních nádob, odpad dle možnosti vhodným způsobem třídit.
A20: Číslo typové činnosti | B20: Popis typových pracovních činností:
A21: 1. | B21: Úklidem společných prostor, podlah chodeb, schodišť a vestibulu se rozumí: zamést a vytřít podlahy, odstranit našlapané žvýkačky a jiné nečistoty, vyluxovat podlahy kryté kobercem. Umýt parapety, zábradlí a hasicí přístroje umístěné na chodbách, vyleštit skleněné plochy na chodbách a ve vestibulech, setřít prach a pavučiny. Sepsat a nahlásit všechny zjištěné závady a škody.
A22: 2. | B22: Úklidem balkonů se rozumí: zamést a vytřít podlahy, odstranit našlapané žvýkačky a jiné nečistoty, umýt parapety a zábradlí. Odstranit pavučiny. Vynést odpady a popř. i vysypat popelníky.
A23: 3. | B23: Úklidem společenských, (studoven, kluboven apod.) zájmových (posiloven, tělocvičen apod.) a zasedacích místností, kanceláří, skladů a šaten se rozumí: zamést a vytřít podlahy, podlahy pokryté kobercem vyluxovat, setřít prach a pavučiny ze všech dosažitelných a volně přístupných míst a zařízení místností (topení, cvičební nářadí, parapety pod okny apod.), umýt a vyčistit skvrny kolem klik, dveří, vypínačů a světel. Srovnat nábytek a jiné vybavení místností. Srovnat nebo dověsit záclony a závěsy. Vyleštit zrcadla. Vynést odpad. Sepsat a nahlásit všechny zjištěné závady a škody.
A24: 4. | B24: Úklidem prádelen se rozumí: zamést a vytřít podlahy, setřít prach a pavučiny ze všech dosažitelných a volně přístupných míst a zařízení místností (praček, topení, apod.). Vyčistit filtry praček, vyčistit zásobníky na prášek. Umýt a vyčistit dveře, kliky, vypínače a světla. Srovnat nebo dověsit záclony a závěsy. Vyleštit zrcadla. Vynést odpad. Sepsat a nahlásit všechny zjištěné závady a škody.
A25: 5. | B25: Úklidem kuchyněk se rozumí: umýt, vyčistit a vydesinfikovat sporák, vařič, mikrovlnnou troubu, digestoř, pracovní desky a zařízení místnosti kuchyňky. Umýt, vyčistit a vydesinfikovat obklady. Pokud je kuchyňka vybavena nádobím umýt nádobí. Odmrazit a vyčistit lednici. Odstranit všechny prošlé nebo kazící se potraviny. Zamést a vytřít podlahy. Vynést odpad. Setřít prach a pavučiny. Sepsat a nahlásit všechny zjištěné závady a škody.
A26: 6. | B26: Generálním úklidem pokojů po odchodu studentů se rozumí: umýt nábytek z venku (postele, stoly, židle, police, skříně apod.) i zevnitř (skříně, šuplíky, peřináče, postele apod.) a vyčistit od skvrn. Vyleštit zrcadla a okna. Vyluxovat/strojově vyčistit matrace postelí. Setřít prach a pavučiny (včetně žaluzií). Umýt a vyčistit veškeré obložení, lišty, obrazy, dveře, kliky, rámy oken, parapety, vypínače, zásuvky, topení, světla, lampičky apod. Umýt ledničku zevnitř i zvenku. Zamést a vytřít podlahy, podlahy kryté kobercem vyluxovat, a to i pod a za postelí, křesly a závěsy. Srovnat nebo dověsit záclony a závěsy, srovnat nábytek a jiné vybavení pokoje. Vynést odpad, umýt, otřít a vyleštit odpadkový koš. Zlikvidovat případné komáry a mouchy. Vyvětrat a popř. i navonět. Sepsat a nahlásit všechny zjištěné závady a škody. Případné nalezené věci po ubytovaných předat vedení koleje.
A27: 7. | B27: Úklidem předsíní buněk se rozumí: úklid sociálního zařízení podle bodu 14. a 15. úklid kuchyňky podle bodu 5. Zamést a vytřít podlahy. Umýt a vyčistit pracovní plochy a nábytek. Setřít prach a pavučiny. Vynést odpad. Sepsat a nahlásit vedení koleje všechny závady a škody.
A28: 8. | B28: Úklidem hotelových pokojů po vystěhování se rozumí: umýt nábytek z venku (postele, stoly, židle, police, skříně apod.) i zevnitř (skříně, šuplíky, peřináče, postele apod.) a vyčistit od skvrn. Vyleštit zrcadla a okna. Převléct a ustlat postele, vyluxovat/strojově vyčistit matrace postelí. Setřít prach a pavučiny (včetně žaluzií). Umýt a vyčistit veškeré obložení, lišty, obrazy, dveře, kliky, rámy oken, parapety, vypínače, zásuvky, televizi, topení, světla, lampičky apod. Umýt nádobí. Umýt ledničku zevnitř i zvenku. Zamést a vytřít podlahy, podlahy kryté kobercem vyluxovat, a to i pod a za postelí, křesly a závěsy. Srovnat nebo dověsit záclony a závěsy, srovnat nábytek a jiné vybavení pokoje. Vynést odpad, umýt, otřít a vyleštit odpadkový koš. Zlikvidovat případné komáry a mouchy. Doplnit hotelové potřeby. Vyvětrat a popř. i navonět. Předat složené použité prádlo a ručníky skladní. Sepsat a nahlásit vedení koleje všechny závady a škody. Případné nalezené věci po hostech předat vedení koleje.
A29: 9. | B29: Úklidem hotelových pokojů v průběhu ubytování se rozumí: ustlání postelí, popř. výměna ložního prádla každý 4. den pobytu, výměna osušek a ručníků, doplnění toaletního papíru, vynesení odpadků, umytí koupelny (sprchový kout, WC, umyvadlo), vytření podlahy.
A30: 10. | B30: Přebráním uklizeného pokoje po studentech se rozumí: podle bodu 6. a 7. zkontrolovat úklid provedený studenty. Přebrat klíče od pokoje. Podepsat potvrzení o řádně provedeném úklidu a odevzdání klíčů. Sepsat a nahlásit všechny zjištěné závady a škody. V případě nutnosti upozornit studenty na nedostatky v úklidu s tím, že je musí ve stanovené době odstranit, po té provést novou kontrolu úklidu. V případě, že ani napodruhé nebude pokoj řádně uklizen nahlásit tuto skutečnost vedení koleje.
A31: 11. | B31: Úklidem výtahu se rozumí: zametení a vytření podlahy, vyčištění dveřních drážek, mytí stěn, mytí světel, jsou-li instalována vyleštění zrcadel.
A32: 12. | B32: Mytím oken se rozumí: mytí a leštění skel, mytí rámů, mytí parapetu, jsou-li instalovány setření žaluzií.
A33: 13. | B33: Čištěním matrací: vyčištění matrací parním strojem.
A34: 14. | B34: Úklidem WC se rozumí: umýt, vyčistit a vydesinfikovat místnost WC, umýt záchodovou mísu zevnitř i zvenku umýt nohu a trubku za WC, umýt prkýnko a nádobu na splachovací vodu, popř. umýt pisoáry, umyvadla, baterie, obklady, odpady, podlahy a dveře. Otřít držák na toaletní papír. Doplnit toaletní papír a papírové ručníky. Umýt dlaždičky a silikon od plísně. Vylít vodu a otřít pouzdro na WC štětku. Vyleštit zrcadla. Vynést odpad. Setřít prach a pavučiny. Vždy za použití odpovídajícího mycího/čistícího přípravku.
A35: 15. | B35: Úklidem koupelen a sprch se rozumí: umýt, vyčistit a vydesinfikovat umyvadlo zevnitř i zvenku včetně trubek pod ním, baterie, sprchový kout, obklady, poličku nad umyvadlem i ve sprchovém koutě, odpady, podlahy a dveře. Umýt stěny sprchového koutu, gumové těsnění popř. závěs sprchového koutu. Odstranit rez a vodní kámen. Doplnit papírové ručníky. Vynést odpad. Vyleštit zrcadlo, poličku, sprchu a držák na sprchu. Umýt dlaždičky a silikon od plísně. Vynést odpad. Setřít prach a pavučiny. Vždy za použití odpovídajícího mycího/čistícího přípravku
